{"text_format":"1","workbook":"xlsx","n_sheets":44,"sheets":["Schools","Grade Span Comp Report Salary ","Instr Salaries School 1","Instr Salaries School 2","Instr Salaries School 3","Instr Salaries School 4","Instr Salaries School 5","Instr Salaries School 6","Instr Salaries School 7","Instr Salaries School 8","Instr Salaries School 9","Instr Salaries School 10","Instr Salaries School 11","Instr Salaries School 12","Instr Salaries School 13","Instr Salaries School 14","Instr Salaries School 15","Instr Salaries School 16","Instr Salaries School 17","Instr Salaries School 18","Instr Salaries School 19","Instr Salaries School 20","Instr Salaries School 21","Instr Salaries School 22","Instr Salaries School 23","Instr Salaries School 24","Instr Salaries School 25","Instr Salaries School 26","Instr Salaries School 27","Instr Salaries School 28","Instr Salaries School 29","Instr Salaries School 30","Instr Salaries School 31","Instr Salaries School 32","Instr Salaries School 33","Instr Salaries School 34","Instr Salaries School 35","Instr Salaries School 36","Instr Salaries School 37","Instr Salaries School 38","Instr Salaries School 39","Instr Salaries School 40","Instr Salaries School 41","Instr Salaries School 42"],"not_rendered":{"charts":0,"images":0,"macros":1,"external_links":1,"defined_names":3,"comments":0,"pivot_tables":0},"unopened":[],"bounds":{"document_bytes":16777216,"sheet_cells":100000,"rows_first":2000,"rows_last":500,"rows_between":2000,"halvings":0,"cell_chars":16384,"cell_head_chars":4096},"cells_cut":0,"cells_raw":0,"read":"whole","date_system":"1900"}

{"sheet":"Schools","index":0,"n_rows":63,"n_cols":18,"rows_kept":63,"cut":false,"hidden":false,"merged":[[4,4,4,17],[35,2,35,3],[35,4,35,17],[36,2,36,3],[36,4,36,17],[33,0,33,7],[34,0,34,4],[35,0,36,0],[0,0,0,7],[1,0,1,4],[2,2,2,3],[2,4,2,17],[6,4,6,16],[6,17,7,17],[7,1,8,1],[7,4,7,16],[7,0,8,0],[7,2,8,2],[7,3,8,3],[5,4,5,17],[5,2,5,3],[3,2,3,3],[3,4,3,17],[4,2,4,3],[40,0,41,0],[40,1,41,1],[40,2,41,2],[40,3,41,3],[40,4,40,16],[37,2,37,3],[37,4,37,17],[38,2,38,3],[38,4,38,17],[39,4,39,16],[39,17,40,17]]}
["(Required - Upload a Printed Copy to the LEA Document Library's Comparability folder in MCAPS)"]
[]
["List Title I schools in the LEA.",null,"LEA  Name:"]
[null,null,"Grade Range:"]
[null,null,"School Year:  "]
[]
[1,2,3,4,5,null,null,null,null,null,null,null,null,null,null,null,null,6]
["Title I School Name","Grade Span","Student Enrollment","Low Income Students","Enrollment Counts by Grade"]
[null,null,null,null,"K",1,2,3,4,5,6,7,8,9,10,11,12,"Total"]
[null,null,null,null,null,null,null,null,null,null,null,null,null,null,null,null,null,{"$f":"SUM(E10:Q10)","v":0}]
[null,null,null,null,null,null,null,null,null,null,null,null,null,null,null,null,null,{"$f":"SUM(E11:Q11)","v":0}]
[null,null,null,null,null,null,null,null,null,null,null,null,null,null,null,null,null,0]
[null,null,null,null,null,null,null,null,null,null,null,null,null,null,null,null,null,0]
[null,null,null,null,null,null,null,null,null,null,null,null,null,null,null,null,null,0]
[null,null,null,null,null,null,null,null,null,null,null,null,null,null,null,null,null,0]
[null,null,null,null,null,null,null,null,null,null,null,null,null,null,null,null,null,0]
[null,null,null,null,null,null,null,null,null,null,null,null,null,null,null,null,null,0]
[null,null,null,null,null,null,null,null,null,null,null,null,null,null,null,null,null,0]
[null,null,null,null,null,null,null,null,null,null,null,null,null,null,null,null,null,0]
[null,null,null,null,null,null,null,null,null,null,null,null,null,null,null,null,null,0]
[null,null,null,null,null,null,null,null,null,null,null,null,null,null,null,null,null,0]
[null,null,null,null,null,null,null,null,null,null,null,null,null,null,null,null,null,0]
[null,null,null,null,null,null,null,null,null,null,null,null,null,null,null,null,null,0]
[null,null,null,null,null,null,null,null,null,null,null,null,null,null,null,null,null,0]
[null,null,null,null,null,null,null,null,null,null,null,null,null,null,null,null,null,0]
[null,null,null,null,null,null,null,null,null,null,null,null,null,null,null,null,null,0]
[null,null,null,null,null,null,null,null,null,null,null,null,null,null,null,null,null,0]
[null,null,null,null,null,null,null,null,null,null,null,null,null,null,null,null,null,0]
[null,null,null,null,null,null,null,null,null,null,null,null,null,null,null,null,null,0]
[null,null,null,null,null,null,null,null,null,null,null,null,null,null,null,null,null,0]
[]
[]
[]
["(Required - Upload a Printed Copy to the LEA Document Library's Comparability folder in MCAPS)"]
[]
["List Non-Title I/ Title I Comparsion schools in the LEA.",null,"LEA  Name:",null,{"$f":"E3","v":0}]
[null,null,"Grade Range:",null,{"$f":"E4","v":0}]
[null,null,"School Year:  ",null,{"$f":"E5","v":0}]
[]
[1,2,3,4,5,null,null,null,null,null,null,null,null,null,null,null,null,6]
["Non-Title I/ Title I Comparison School Name","Grade Span","Student Enrollment","Low Income Students","Enrollment Counts by Grade"]
[null,null,null,null,"K",1,2,3,4,5,6,7,8,9,10,11,12,"Total"]
[null,null,null,null,null,null,null,null,null,null,null,null,null,null,null,null,null,{"$f":"SUM(E43:Q43)","v":0}]
[null,null,null,null,null,null,null,null,null,null,null,null,null,null,null,null,null,{"$f":"SUM(E44:Q44)","v":0}]
[null,null,null,null,null,null,null,null,null,null,null,null,null,null,null,null,null,0]
[null,null,null,null,null,null,null,null,null,null,null,null,null,null,null,null,null,0]
[null,null,null,null,null,null,null,null,null,null,null,null,null,null,null,null,null,0]
[null,null,null,null,null,null,null,null,null,null,null,null,null,null,null,null,null,0]
[null,null,null,null,null,null,null,null,null,null,null,null,null,null,null,null,null,0]
[null,null,null,null,null,null,null,null,null,null,null,null,null,null,null,null,null,0]
[null,null,null,null,null,null,null,null,null,null,null,null,null,null,null,null,null,0]
[null,null,null,null,null,null,null,null,null,null,null,null,null,null,null,null,null,0]
[null,null,null,null,null,null,null,null,null,null,null,null,null,null,null,null,null,0]
[null,null,null,null,null,null,null,null,null,null,null,null,null,null,null,null,null,0]
[null,null,null,null,null,null,null,null,null,null,null,null,null,null,null,null,null,0]
[null,null,null,null,null,null,null,null,null,null,null,null,null,null,null,null,null,0]
[null,null,null,null,null,null,null,null,null,null,null,null,null,null,null,null,null,0]
[null,null,null,null,null,null,null,null,null,null,null,null,null,null,null,null,null,0]
[null,null,null,null,null,null,null,null,null,null,null,null,null,null,null,null,null,0]
[null,null,null,null,null,null,null,null,null,null,null,null,null,null,null,null,null,0]
[null,null,null,null,null,null,null,null,null,null,null,null,null,null,null,null,null,0]
[null,null,null,null,null,null,null,null,null,null,null,null,null,null,null,null,null,0]
[null,null,null,null,null,null,null,null,null,null,null,null,null,null,null,null,null,0]

{"sheet":"Grade Span Comp Report Salary ","index":1,"n_rows":57,"n_cols":8,"rows_kept":57,"cut":false,"hidden":false,"merged":[[31,3,31,5],[30,0,30,2],[31,0,31,2],[56,0,56,5],[31,6,31,7],[30,6,30,7],[55,0,55,1],[30,3,30,5],[0,0,0,5],[2,6,2,7],[29,0,29,7],[3,6,3,7],[3,0,3,2],[3,3,3,5],[2,3,2,5],[28,0,28,5],[2,0,2,2],[1,0,1,7],[4,0,4,7]]}
["List ALL Title I schools (serving the same grade spans as ALL Non-Title I or Title I Comparison Schools)"]
[]
["LEA Name: (Enter name below)",null,null,"Grade Range:  (Enter the range of grades that will be compared below)",null,null,"School Year:  (Enter School Term below)"]
[{"$f":"Schools!$E$3","v":0},null,null,{"$f":"Schools!$E$4","v":0},null,null,{"$f":"Schools!$E$5","v":0}]
[]
[1,2,3,4,5,6,7,8]
["Title I School Name","Grade Span (Populates)","Student Enrollment  (Populates)","Low Income Students  (Populates)","Students Poverty Percentage (Calculated)","Instructional Staff State/Local Funded (Instr Salaries School 1-21)","Salary/Student Ratio (Calculated)","Comparable"]
[{"$f":"Schools!A10","v":0},{"$f":"Schools!B10","v":0},{"$f":"Schools!C10","v":0},{"$f":"Schools!D10","v":0},{"$f":"SUM(D8/C8)","v":{"$error":"#DIV/0!"}},{"$f":"'Instr Salaries School 1'!$E$93","v":0},{"$f":"F8/C8","v":{"$error":"#DIV/0!"}},{"$f":"IF(G8<>\"\",IF(G8>=$G$29,\"YES\",\"NO\"),\"\")","v":{"$error":"#DIV/0!"}}]
[{"$f":"Schools!A11","v":0},{"$f":"Schools!B11","v":0},{"$f":"Schools!C11","v":0},{"$f":"Schools!D11","v":0},{"$error":"#DIV/0!"},{"$f":"'Instr Salaries School 2'!$E$93","v":0},{"$f":"F9/C9","v":{"$error":"#DIV/0!"}},{"$error":"#DIV/0!"}]
[{"$f":"Schools!A12","v":0},{"$f":"Schools!B12","v":0},{"$f":"Schools!C12","v":0},{"$f":"Schools!D12","v":0},{"$error":"#DIV/0!"},{"$f":"'Instr Salaries School 3'!$E$93","v":0},{"$error":"#DIV/0!"},{"$error":"#DIV/0!"}]
[{"$f":"Schools!A13","v":0},{"$f":"Schools!B13","v":0},{"$f":"Schools!C13","v":0},{"$f":"Schools!D13","v":0},{"$error":"#DIV/0!"},{"$f":"'Instr Salaries School 4'!$E$93","v":0},{"$error":"#DIV/0!"},{"$error":"#DIV/0!"}]
[{"$f":"Schools!A14","v":0},{"$f":"Schools!B14","v":0},{"$f":"Schools!C14","v":0},{"$f":"Schools!D14","v":0},{"$error":"#DIV/0!"},{"$f":"'Instr Salaries School 5'!$E$93","v":0},{"$error":"#DIV/0!"},{"$error":"#DIV/0!"}]
[{"$f":"Schools!A15","v":0},{"$f":"Schools!B15","v":0},{"$f":"Schools!C15","v":0},{"$f":"Schools!D15","v":0},{"$error":"#DIV/0!"},{"$f":"'Instr Salaries School 6'!$E$93","v":0},{"$error":"#DIV/0!"},{"$error":"#DIV/0!"}]
[{"$f":"Schools!A16","v":0},{"$f":"Schools!B16","v":0},{"$f":"Schools!C16","v":0},{"$f":"Schools!D16","v":0},{"$error":"#DIV/0!"},{"$f":"'Instr Salaries School 7'!$E$93","v":0},{"$error":"#DIV/0!"},{"$error":"#DIV/0!"}]
[{"$f":"Schools!A17","v":0},{"$f":"Schools!B17","v":0},{"$f":"Schools!C17","v":0},{"$f":"Schools!D17","v":0},{"$error":"#DIV/0!"},{"$f":"'Instr Salaries School 8'!$E$93","v":0},{"$error":"#DIV/0!"},{"$error":"#DIV/0!"}]
[{"$f":"Schools!A18","v":0},{"$f":"Schools!B18","v":0},{"$f":"Schools!C18","v":0},{"$f":"Schools!D18","v":0},{"$error":"#DIV/0!"},{"$f":"'Instr Salaries School 9'!$E$93","v":0},{"$error":"#DIV/0!"},{"$error":"#DIV/0!"}]
[{"$f":"Schools!A19","v":0},{"$f":"Schools!B19","v":0},{"$f":"Schools!C19","v":0},{"$f":"Schools!D19","v":0},{"$error":"#DIV/0!"},{"$f":"'Instr Salaries School 10'!$E$93","v":0},{"$error":"#DIV/0!"},{"$error":"#DIV/0!"}]
[{"$f":"Schools!A20","v":0},{"$f":"Schools!B20","v":0},{"$f":"Schools!C20","v":0},{"$f":"Schools!D20","v":0},{"$error":"#DIV/0!"},{"$f":"'Instr Salaries School 11'!$E$93","v":0},{"$error":"#DIV/0!"},{"$error":"#DIV/0!"}]
[{"$f":"Schools!A21","v":0},{"$f":"Schools!B21","v":0},{"$f":"Schools!C21","v":0},{"$f":"Schools!D21","v":0},{"$error":"#DIV/0!"},{"$f":"'Instr Salaries School 12'!$E$93","v":0},{"$error":"#DIV/0!"},{"$error":"#DIV/0!"}]
[{"$f":"Schools!A22","v":0},{"$f":"Schools!B22","v":0},{"$f":"Schools!C22","v":0},{"$f":"Schools!D22","v":0},{"$error":"#DIV/0!"},{"$f":"'Instr Salaries School 13'!$E$93","v":0},{"$error":"#DIV/0!"},{"$error":"#DIV/0!"}]
[{"$f":"Schools!A23","v":0},{"$f":"Schools!B23","v":0},{"$f":"Schools!C23","v":0},{"$f":"Schools!D23","v":0},{"$error":"#DIV/0!"},{"$f":"'Instr Salaries School 14'!$E$93","v":0},{"$error":"#DIV/0!"},{"$error":"#DIV/0!"}]
[{"$f":"Schools!A24","v":0},{"$f":"Schools!B24","v":0},{"$f":"Schools!C24","v":0},{"$f":"Schools!D24","v":0},{"$error":"#DIV/0!"},{"$f":"'Instr Salaries School 15'!$E$93","v":0},{"$error":"#DIV/0!"},{"$error":"#DIV/0!"}]
[{"$f":"Schools!A25","v":0},{"$f":"Schools!B25","v":0},{"$f":"Schools!C25","v":0},{"$f":"Schools!D25","v":0},{"$error":"#DIV/0!"},{"$f":"'Instr Salaries School 16'!$E$93","v":0},{"$error":"#DIV/0!"},{"$error":"#DIV/0!"}]
[{"$f":"Schools!A26","v":0},{"$f":"Schools!B26","v":0},{"$f":"Schools!C26","v":0},{"$f":"Schools!D26","v":0},{"$error":"#DIV/0!"},{"$f":"'Instr Salaries School 17'!$E$93","v":0},{"$error":"#DIV/0!"},{"$error":"#DIV/0!"}]
[{"$f":"Schools!A27","v":0},{"$f":"Schools!B27","v":0},{"$f":"Schools!C27","v":0},{"$f":"Schools!D27","v":0},{"$error":"#DIV/0!"},{"$f":"'Instr Salaries School 18'!$E$93","v":0},{"$error":"#DIV/0!"},{"$error":"#DIV/0!"}]
[{"$f":"Schools!A28","v":0},{"$f":"Schools!B28","v":0},{"$f":"Schools!C28","v":0},{"$f":"Schools!D28","v":0},{"$f":"SUM(D26/C26)","v":{"$error":"#DIV/0!"}},{"$f":"'Instr Salaries School 19'!$E$93","v":0},{"$error":"#DIV/0!"},{"$error":"#DIV/0!"}]
[{"$f":"Schools!A29","v":0},{"$f":"Schools!B29","v":0},{"$f":"Schools!C29","v":0},{"$f":"Schools!D29","v":0},{"$error":"#DIV/0!"},{"$f":"'Instr Salaries School 20'!$E$93","v":0},{"$error":"#DIV/0!"},{"$error":"#DIV/0!"}]
[{"$f":"Schools!A30","v":0},{"$f":"Schools!B30","v":0},{"$f":"Schools!C30","v":0},{"$f":"Schools!D30","v":0},{"$error":"#DIV/0!"},{"$f":"'Instr Salaries School 21'!$E$93","v":0},{"$error":"#DIV/0!"},{"$error":"#DIV/0!"}]
[" 90% of the Average for all Non-Title I and Title I Comparison School's Instructional Salary Ratio",null,null,null,null,null,{"$f":"SUM(G56*0.9)","v":{"$error":"#DIV/0!"}}]
["List ALL Non-Title I or Title I Comparison schools (serving the same grade spans as Title I Schools)"]
["LEA Name: (Enter name below)",null,null,"Grade Range:  (Enter the range of grades that will be compared below)",null,null,"School Year:  (Enter School Term below)"]
[{"$f":"A4","v":0},null,null,{"$f":"D4","v":0},null,null,{"$f":"G4","v":0}]
[1,2,3,4,5,6,7,8]
["Non-Title I or Title I Comparison Schools Name","Grade Span (Populates)","Student Enrollment  (Populates)","Low Income Students  (Populates)","Students Poverty Percentage (Calculated)","Instructional Staff State/Local Funded (Instr Salaries School 22-42)","Salary/Student Ratio (Calculated)","N/A for Non-Title I School"]
[{"$f":"Schools!A43","v":0},{"$f":"Schools!B43","v":0},{"$f":"Schools!C43","v":0},{"$f":"Schools!D43","v":0},{"$f":"SUM(D35/C35)","v":{"$error":"#DIV/0!"}},{"$f":"'Instr Salaries School 22'!$E$93","v":0},{"$f":"F35/C35","v":{"$error":"#DIV/0!"}},"n/a"]
[{"$f":"Schools!A44","v":0},{"$f":"Schools!B44","v":0},{"$f":"Schools!C44","v":0},{"$f":"Schools!D44","v":0},{"$error":"#DIV/0!"},{"$f":"'Instr Salaries School 23'!$E$93","v":0},{"$f":"F36/C36","v":{"$error":"#DIV/0!"}},"n/a"]
[{"$f":"Schools!A45","v":0},{"$f":"Schools!B45","v":0},{"$f":"Schools!C45","v":0},{"$f":"Schools!D45","v":0},{"$error":"#DIV/0!"},{"$f":"'Instr Salaries School 24'!$E$93","v":0},{"$error":"#DIV/0!"},"n/a"]
[{"$f":"Schools!A46","v":0},{"$f":"Schools!B46","v":0},{"$f":"Schools!C46","v":0},{"$f":"Schools!D46","v":0},{"$error":"#DIV/0!"},{"$f":"'Instr Salaries School 25'!$E$93","v":0},{"$error":"#DIV/0!"},"n/a"]
[{"$f":"Schools!A47","v":0},{"$f":"Schools!B47","v":0},{"$f":"Schools!C47","v":0},{"$f":"Schools!D47","v":0},{"$error":"#DIV/0!"},{"$f":"'Instr Salaries School 26'!$E$93","v":0},{"$error":"#DIV/0!"},"n/a"]
[{"$f":"Schools!A48","v":0},{"$f":"Schools!B48","v":0},{"$f":"Schools!C48","v":0},{"$f":"Schools!D48","v":0},{"$error":"#DIV/0!"},{"$f":"'Instr Salaries School 27'!$E$93","v":0},{"$error":"#DIV/0!"},"n/a"]
[{"$f":"Schools!A49","v":0},{"$f":"Schools!B49","v":0},{"$f":"Schools!C49","v":0},{"$f":"Schools!D49","v":0},{"$error":"#DIV/0!"},{"$f":"'Instr Salaries School 28'!$E$93","v":0},{"$error":"#DIV/0!"},"n/a"]
[{"$f":"Schools!A50","v":0},{"$f":"Schools!B50","v":0},{"$f":"Schools!C50","v":0},{"$f":"Schools!D50","v":0},{"$error":"#DIV/0!"},{"$f":"'Instr Salaries School 29'!$E$93","v":0},{"$error":"#DIV/0!"},"n/a"]
[{"$f":"Schools!A51","v":0},{"$f":"Schools!B51","v":0},{"$f":"Schools!C51","v":0},{"$f":"Schools!D51","v":0},{"$error":"#DIV/0!"},{"$f":"'Instr Salaries School 30'!$E$93","v":0},{"$error":"#DIV/0!"},"n/a"]
[{"$f":"Schools!A52","v":0},{"$f":"Schools!B52","v":0},{"$f":"Schools!C52","v":0},{"$f":"Schools!D52","v":0},{"$error":"#DIV/0!"},{"$f":"'Instr Salaries School 31'!$E$93","v":0},{"$error":"#DIV/0!"},"n/a"]
[{"$f":"Schools!A53","v":0},{"$f":"Schools!B53","v":0},{"$f":"Schools!C53","v":0},{"$f":"Schools!D53","v":0},{"$error":"#DIV/0!"},{"$f":"'Instr Salaries School 32'!$E$93","v":0},{"$error":"#DIV/0!"},"n/a"]
[{"$f":"Schools!A54","v":0},{"$f":"Schools!B54","v":0},{"$f":"Schools!C54","v":0},{"$f":"Schools!D54","v":0},{"$error":"#DIV/0!"},{"$f":"'Instr Salaries School 33'!$E$93","v":0},{"$error":"#DIV/0!"},"n/a"]
[{"$f":"Schools!A55","v":0},{"$f":"Schools!B55","v":0},{"$f":"Schools!C55","v":0},{"$f":"Schools!D55","v":0},{"$error":"#DIV/0!"},{"$f":"'Instr Salaries School 34'!$E$93","v":0},{"$error":"#DIV/0!"},"n/a"]
[{"$f":"Schools!A56","v":0},{"$f":"Schools!B56","v":0},{"$f":"Schools!C56","v":0},{"$f":"Schools!D56","v":0},{"$error":"#DIV/0!"},{"$f":"'Instr Salaries School 35'!$E$93","v":0},{"$error":"#DIV/0!"},"n/a"]
[{"$f":"Schools!A57","v":0},{"$f":"Schools!B57","v":0},{"$f":"Schools!C57","v":0},{"$f":"Schools!D57","v":0},{"$error":"#DIV/0!"},{"$f":"'Instr Salaries School 36'!$E$93","v":0},{"$error":"#DIV/0!"},"n/a"]
[{"$f":"Schools!A58","v":0},{"$f":"Schools!B58","v":0},{"$f":"Schools!C58","v":0},{"$f":"Schools!D58","v":0},{"$error":"#DIV/0!"},{"$f":"'Instr Salaries School 37'!$E$93","v":0},{"$error":"#DIV/0!"},"n/a"]
[{"$f":"Schools!A59","v":0},{"$f":"Schools!B59","v":0},{"$f":"Schools!C59","v":0},{"$f":"Schools!D59","v":0},{"$error":"#DIV/0!"},{"$f":"'Instr Salaries School 38'!$E$93","v":0},{"$error":"#DIV/0!"},"n/a"]
[{"$f":"Schools!A60","v":0},{"$f":"Schools!B60","v":0},{"$f":"Schools!C60","v":0},{"$f":"Schools!D60","v":0},{"$error":"#DIV/0!"},{"$f":"'Instr Salaries School 39'!$E$93","v":0},{"$error":"#DIV/0!"},"n/a"]
[{"$f":"Schools!A61","v":0},{"$f":"Schools!B61","v":0},{"$f":"Schools!C61","v":0},{"$f":"Schools!D61","v":0},{"$error":"#DIV/0!"},{"$f":"'Instr Salaries School 40'!$E$93","v":40},{"$f":"F53/C53","v":{"$error":"#DIV/0!"}},"n/a"]
[{"$f":"Schools!A62","v":0},{"$f":"Schools!B62","v":0},{"$f":"Schools!C62","v":0},{"$f":"Schools!D62","v":0},{"$error":"#DIV/0!"},{"$f":"'Instr Salaries School 41'!$E$93","v":0},{"$error":"#DIV/0!"},"n/a"]
[{"$f":"Schools!A63","v":0},{"$f":"Schools!B63","v":0},{"$f":"Schools!C63","v":0},{"$f":"Schools!D63","v":0},{"$error":"#DIV/0!"},{"$f":"'Instr Salaries School 42'!$E$93","v":0},{"$f":"F55/C55","v":{"$error":"#DIV/0!"}},"n/a"]
["Total",null,{"$f":"SUM(C35:C55)","v":0},{"$f":"SUM(D35:D55)","v":0},null,{"$f":"SUM(F35:F55)","v":40},{"$error":"#DIV/0!"}]
[" 90% of the Average for all Non-Title I and Title I Comparison School's Instructional Salary Ratio",null,null,null,null,null,{"$f":"SUM(G56*0.9)","v":{"$error":"#DIV/0!"}}]

{"sheet":"Instr Salaries School 1","index":2,"n_rows":93,"n_cols":5,"rows_kept":93,"cut":false,"hidden":false,"merged":[[1,0,1,4],[0,0,0,4],[47,0,47,4],[48,0,48,4],[49,1,49,4],[92,2,92,3],[2,1,2,4],[3,1,3,4],[4,1,4,4],[7,0,7,4],[8,0,8,1],[51,1,51,4],[52,1,52,4],[5,1,5,4],[6,0,6,4],[50,1,50,4],[53,0,53,4],[54,0,54,1]]}
["Instructional Personnel- Salary (REQUIRED to be kept on file for monitoring purposes)"]
[]
["LEA Name:  ",{"$f":"Schools!$E$3","v":0}]
["School Name:",{"$f":"Schools!$A$10","v":0}]
["School Grade Span:",{"$f":"Schools!$B$10","v":0}]
["School Year:",{"$f":"Schools!$E$5","v":0}]
[]
["Instructional personnel includes all licensed classroom teachers and other licensed personnel assigned to the school who provide services that support instruction: principals, assistant principals, instructional coaches, librarians, music, art, and physical education teachers, guidance counselors, speech therapists and licensed social workers and psychological personnel. Other personnel directly supporting instruction assigned to the school may include paraprofessionals and other personnel such as non-licensed social workers.  Personnel not involved in providing instructional support MAY NOT be included.   Other personnel that MAY NOT be included are clerical, custodial, food service, transportation, and any other personnel not providing instructional support. Do not include any PreK personnel or 100% federally funded personnel.  Please remember that federally funded would include Title I, II, III, IV, V, Homeless, CTE, SPED, etc.  If personnel is paid from federal and state/local funds indicate the portion of the salary for each personnel in the appropriate column 3 or column 4."]
[1,null,2,3,4]
["LAST Name of \nEmployee","FIRST Name of Employee","Position\n(please be specific)","Federally Funded Instructional Salary","State/Local Funded Instructional Salary"]
[]
[]
[]
[]
[]
[]
[]
[]
[]
[]
[]
[]
[]
[]
[]
[]
[]
[]
[]
[]
[]
[]
[]
[]
[]
[]
[]
[]
[]
[]
[]
[]
[]
[]
[]
[]
[]
["Instructional Personnel- Salary (REQUIRED to be kept on file for monitoring purposes)"]
[]
["LEA Name:  ",{"$f":"B3","v":0}]
["School Name:",0]
["School Grade Span:",0]
["School Year:",0]
["Instructional personnel includes all licensed classroom teachers and other licensed personnel assigned to the school who provide services that support instruction: principals, assistant principals, instructional coaches, librarians, music, art, and physical education teachers, guidance counselors, speech therapists and licensed social workers and psychological personnel. Other personnel directly supporting instruction assigned to the school may include paraprofessionals and other personnel such as non-licensed social workers.  Personnel not involved in providing instructional support MAY NOT be included.   Other personnel that MAY NOT be included are clerical, custodial, food service, transportation, and any other personnel not providing instructional support. Do not include any PreK personnel or 100% federally funded personnel.  Please remember that federally funded would include Title I, II, III, IV, V, Homeless, CTE, SPED, etc.  If personnel is paid from federal and state/local funds indicate the portion of the salary for each personnel in the appropriate column 3 or column 4."]
[1,null,2,3,4]
["LAST Name of \nEmployee","FIRST Name of Employee","Position\n(please be specific)","Federally Funded Salary","State/Local funded Salary"]
[]
[]
[]
[]
[]
[]
[]
[]
[]
[]
[]
[]
[]
[]
[]
[]
[]
[]
[]
[]
[]
[]
[]
[]
[]
[]
[]
[]
[]
[]
[]
[]
[]
[]
[]
[]
[null,null,"Total",null,{"$f":"SUM(E57:E92,E11:E47)","v":0}]

{"sheet":"Instr Salaries School 2","index":3,"n_rows":93,"n_cols":5,"rows_kept":93,"cut":false,"hidden":false,"merged":[[1,0,1,4],[0,0,0,4],[47,0,47,4],[48,0,48,4],[49,1,49,4],[92,2,92,3],[2,1,2,4],[3,1,3,4],[4,1,4,4],[7,0,7,4],[8,0,8,1],[51,1,51,4],[52,1,52,4],[5,1,5,4],[6,0,6,4],[50,1,50,4],[53,0,53,4],[54,0,54,1]]}
["Instructional Personnel- Salary (REQUIRED to be kept on file for monitoring purposes)"]
[]
["LEA Name:  ",{"$f":"Schools!$E$3","v":0}]
["School Name:",{"$f":"Schools!$A$11","v":0}]
["School Grade Span:",{"$f":"Schools!$B$11","v":0}]
["School Year:",{"$f":"Schools!$E$5","v":0}]
[]
["Instructional personnel includes all licensed classroom teachers and other licensed personnel assigned to the school who provide services that support instruction: principals, assistant principals, instructional coaches, librarians, music, art, and physical education teachers, guidance counselors, speech therapists and licensed social workers and psychological personnel. Other personnel directly supporting instruction assigned to the school may include paraprofessionals and other personnel such as non-licensed social workers.  Personnel not involved in providing instructional support MAY NOT be included.   Other personnel that MAY NOT be included are clerical, custodial, food service, transportation, and any other personnel not providing instructional support. Do not include any PreK personnel or 100% federally funded personnel.  Please remember that federally funded would include Title I, II, III, IV, V, Homeless, CTE, SPED, etc.  If personnel is paid from federal and state/local funds indicate the portion of the salary for each personnel in the appropriate column 3 or column 4."]
[1,null,2,3,4]
["LAST Name of \nEmployee","FIRST Name of Employee","Position\n(please be specific)","Federally Funded Instructional Salary","State/Local Funded Instructional Salary"]
[]
[]
[]
[]
[]
[]
[]
[]
[]
[]
[]
[]
[]
[]
[]
[]
[]
[]
[]
[]
[]
[]
[]
[]
[]
[]
[]
[]
[]
[]
[]
[]
[]
[]
[]
[]
[]
["Instructional Personnel- Salary (REQUIRED to be kept on file for monitoring purposes)"]
[]
["LEA Name:  ",{"$f":"B3","v":0}]
["School Name:",0]
["School Grade Span:",0]
["School Year:",0]
["Instructional personnel includes all licensed classroom teachers and other licensed personnel assigned to the school who provide services that support instruction: principals, assistant principals, instructional coaches, librarians, music, art, and physical education teachers, guidance counselors, speech therapists and licensed social workers and psychological personnel. Other personnel directly supporting instruction assigned to the school may include paraprofessionals and other personnel such as non-licensed social workers.  Personnel not involved in providing instructional support MAY NOT be included.   Other personnel that MAY NOT be included are clerical, custodial, food service, transportation, and any other personnel not providing instructional support. Do not include any PreK personnel or 100% federally funded personnel.  Please remember that federally funded would include Title I, II, III, IV, V, Homeless, CTE, SPED, etc.  If personnel is paid from federal and state/local funds indicate the portion of the salary for each personnel in the appropriate column 3 or column 4."]
[1,null,2,3,4]
["LAST Name of \nEmployee","FIRST Name of Employee","Position\n(please be specific)","Federally Funded Salary","State/Local funded Salary"]
[]
[]
[]
[]
[]
[]
[]
[]
[]
[]
[]
[]
[]
[]
[]
[]
[]
[]
[]
[]
[]
[]
[]
[]
[]
[]
[]
[]
[]
[]
[]
[]
[]
[]
[]
[]
[null,null,"Total",null,{"$f":"SUM(E57:E92,E11:E47)","v":0}]

{"sheet":"Instr Salaries School 3","index":4,"n_rows":93,"n_cols":5,"rows_kept":93,"cut":false,"hidden":false,"merged":[[1,0,1,4],[0,0,0,4],[47,0,47,4],[48,0,48,4],[49,1,49,4],[92,2,92,3],[2,1,2,4],[3,1,3,4],[4,1,4,4],[7,0,7,4],[8,0,8,1],[51,1,51,4],[52,1,52,4],[5,1,5,4],[6,0,6,4],[50,1,50,4],[53,0,53,4],[54,0,54,1]]}
["Instructional Personnel- Salary (REQUIRED to be kept on file for monitoring purposes)"]
[]
["LEA Name:  ",{"$f":"Schools!$E$3","v":0}]
["School Name:",{"$f":"Schools!$A$12","v":0}]
["School Grade Span:",{"$f":"Schools!$B$12","v":0}]
["School Year:",{"$f":"Schools!$E$5","v":0}]
[]
["Instructional personnel includes all licensed classroom teachers and other licensed personnel assigned to the school who provide services that support instruction: principals, assistant principals, instructional coaches, librarians, music, art, and physical education teachers, guidance counselors, speech therapists and licensed social workers and psychological personnel. Other personnel directly supporting instruction assigned to the school may include paraprofessionals and other personnel such as non-licensed social workers.  Personnel not involved in providing instructional support MAY NOT be included.   Other personnel that MAY NOT be included are clerical, custodial, food service, transportation, and any other personnel not providing instructional support. Do not include any PreK personnel or 100% federally funded personnel.  Please remember that federally funded would include Title I, II, III, IV, V, Homeless, CTE, SPED, etc.  If personnel is paid from federal and state/local funds indicate the portion of the salary for each personnel in the appropriate column 3 or column 4."]
[1,null,2,3,4]
["LAST Name of \nEmployee","FIRST Name of Employee","Position\n(please be specific)","Federally Funded Instructional Salary","State/Local Funded Instructional Salary"]
[]
[]
[]
[]
[]
[]
[]
[]
[]
[]
[]
[]
[]
[]
[]
[]
[]
[]
[]
[]
[]
[]
[]
[]
[]
[]
[]
[]
[]
[]
[]
[]
[]
[]
[]
[]
[]
["Instructional Personnel- Salary (REQUIRED to be kept on file for monitoring purposes)"]
[]
["LEA Name:  ",{"$f":"B3","v":0}]
["School Name:",0]
["School Grade Span:",0]
["School Year:",0]
["Instructional personnel includes all licensed classroom teachers and other licensed personnel assigned to the school who provide services that support instruction: principals, assistant principals, instructional coaches, librarians, music, art, and physical education teachers, guidance counselors, speech therapists and licensed social workers and psychological personnel. Other personnel directly supporting instruction assigned to the school may include paraprofessionals and other personnel such as non-licensed social workers.  Personnel not involved in providing instructional support MAY NOT be included.   Other personnel that MAY NOT be included are clerical, custodial, food service, transportation, and any other personnel not providing instructional support. Do not include any PreK personnel or 100% federally funded personnel.  Please remember that federally funded would include Title I, II, III, IV, V, Homeless, CTE, SPED, etc.  If personnel is paid from federal and state/local funds indicate the portion of the salary for each personnel in the appropriate column 3 or column 4."]
[1,null,2,3,4]
["LAST Name of \nEmployee","FIRST Name of Employee","Position\n(please be specific)","Federally Funded Salary","State/Local funded Salary"]
[]
[]
[]
[]
[]
[]
[]
[]
[]
[]
[]
[]
[]
[]
[]
[]
[]
[]
[]
[]
[]
[]
[]
[]
[]
[]
[]
[]
[]
[]
[]
[]
[]
[]
[]
[]
[null,null,"Total",null,{"$f":"SUM(E57:E92,E11:E47)","v":0}]

{"sheet":"Instr Salaries School 4","index":5,"n_rows":93,"n_cols":5,"rows_kept":93,"cut":false,"hidden":false,"merged":[[1,0,1,4],[0,0,0,4],[47,0,47,4],[48,0,48,4],[49,1,49,4],[92,2,92,3],[2,1,2,4],[3,1,3,4],[4,1,4,4],[7,0,7,4],[8,0,8,1],[51,1,51,4],[52,1,52,4],[5,1,5,4],[6,0,6,4],[50,1,50,4],[53,0,53,4],[54,0,54,1]]}
["Instructional Personnel- Salary (REQUIRED to be kept on file for monitoring purposes)"]
[]
["LEA Name:  ",{"$f":"Schools!$E$3","v":0}]
["School Name:",{"$f":"Schools!$A$13","v":0}]
["School Grade Span:",{"$f":"Schools!$B$13","v":0}]
["School Year:",{"$f":"Schools!$E$5","v":0}]
[]
["Instructional personnel includes all licensed classroom teachers and other licensed personnel assigned to the school who provide services that support instruction: principals, assistant principals, instructional coaches, librarians, music, art, and physical education teachers, guidance counselors, speech therapists and licensed social workers and psychological personnel. Other personnel directly supporting instruction assigned to the school may include paraprofessionals and other personnel such as non-licensed social workers.  Personnel not involved in providing instructional support MAY NOT be included.   Other personnel that MAY NOT be included are clerical, custodial, food service, transportation, and any other personnel not providing instructional support. Do not include any PreK personnel or 100% federally funded personnel.  Please remember that federally funded would include Title I, II, III, IV, V, Homeless, CTE, SPED, etc.  If personnel is paid from federal and state/local funds indicate the portion of the salary for each personnel in the appropriate column 3 or column 4."]
[1,null,2,3,4]
["LAST Name of \nEmployee","FIRST Name of Employee","Position\n(please be specific)","Federally Funded Instructional Salary","State/Local Funded Instructional Salary"]
[]
[]
[]
[]
[]
[]
[]
[]
[]
[]
[]
[]
[]
[]
[]
[]
[]
[]
[]
[]
[]
[]
[]
[]
[]
[]
[]
[]
[]
[]
[]
[]
[]
[]
[]
[]
[]
["Instructional Personnel- Salary (REQUIRED to be kept on file for monitoring purposes)"]
[]
["LEA Name:  ",{"$f":"B3","v":0}]
["School Name:",{"$f":"Schools!$A$13","v":0}]
["School Grade Span:",{"$f":"[1]Schools!$C$8","v":"K-8th"}]
["School Year:",{"$f":"Schools!$E$5","v":0}]
["Instructional personnel includes all licensed classroom teachers and other licensed personnel assigned to the school who provide services that support instruction: principals, assistant principals, instructional coaches, librarians, music, art, and physical education teachers, guidance counselors, speech therapists and licensed social workers and psychological personnel. Other personnel directly supporting instruction assigned to the school may include paraprofessionals and other personnel such as non-licensed social workers.  Personnel not involved in providing instructional support MAY NOT be included.   Other personnel that MAY NOT be included are clerical, custodial, food service, transportation, and any other personnel not providing instructional support. Do not include any PreK personnel or 100% federally funded personnel.  Please remember that federally funded would include Title I, II, III, IV, V, Homeless, CTE, SPED, etc.  If personnel is paid from federal and state/local funds indicate the portion of the salary for each personnel in the appropriate column 3 or column 4."]
[1,null,2,3,4]
["LAST Name of \nEmployee","FIRST Name of Employee","Position\n(please be specific)","Federally Funded Salary","State/Local funded Salary"]
[]
[]
[]
[]
[]
[]
[]
[]
[]
[]
[]
[]
[]
[]
[]
[]
[]
[]
[]
[]
[]
[]
[]
[]
[]
[]
[]
[]
[]
[]
[]
[]
[]
[]
[]
[]
[null,null,"Total",null,{"$f":"SUM(E57:E92,E11:E47)","v":0}]

{"sheet":"Instr Salaries School 5","index":6,"n_rows":93,"n_cols":5,"rows_kept":93,"cut":false,"hidden":false,"merged":[[1,0,1,4],[0,0,0,4],[47,0,47,4],[48,0,48,4],[49,1,49,4],[92,2,92,3],[2,1,2,4],[3,1,3,4],[4,1,4,4],[7,0,7,4],[8,0,8,1],[51,1,51,4],[52,1,52,4],[5,1,5,4],[6,0,6,4],[50,1,50,4],[53,0,53,4],[54,0,54,1]]}
["Instructional Personnel- Salary (REQUIRED to be kept on file for monitoring purposes)"]
[]
["LEA Name:  ",{"$f":"Schools!$E$3","v":0}]
["School Name:",{"$f":"Schools!$A$14","v":0}]
["School Grade Span:",{"$f":"Schools!$B$14","v":0}]
["School Year:",{"$f":"Schools!$E$5","v":0}]
[]
["Instructional personnel includes all licensed classroom teachers and other licensed personnel assigned to the school who provide services that support instruction: principals, assistant principals, instructional coaches, librarians, music, art, and physical education teachers, guidance counselors, speech therapists and licensed social workers and psychological personnel. Other personnel directly supporting instruction assigned to the school may include paraprofessionals and other personnel such as non-licensed social workers.  Personnel not involved in providing instructional support MAY NOT be included.   Other personnel that MAY NOT be included are clerical, custodial, food service, transportation, and any other personnel not providing instructional support. Do not include any PreK personnel or 100% federally funded personnel.  Please remember that federally funded would include Title I, II, III, IV, V, Homeless, CTE, SPED, etc.  If personnel is paid from federal and state/local funds indicate the portion of the salary for each personnel in the appropriate column 3 or column 4."]
[1,null,2,3,4]
["LAST Name of \nEmployee","FIRST Name of Employee","Position\n(please be specific)","Federally Funded Instructional Salary","State/Local Funded Instructional Salary"]
[]
[]
[]
[]
[]
[]
[]
[]
[]
[]
[]
[]
[]
[]
[]
[]
[]
[]
[]
[]
[]
[]
[]
[]
[]
[]
[]
[]
[]
[]
[]
[]
[]
[]
[]
[]
[]
["Instructional Personnel- Salary (REQUIRED to be kept on file for monitoring purposes)"]
[]
["LEA Name:  ",{"$f":"B3","v":0}]
["School Name:",0]
["School Grade Span:",0]
["School Year:",0]
["Instructional personnel includes all licensed classroom teachers and other licensed personnel assigned to the school who provide services that support instruction: principals, assistant principals, instructional coaches, librarians, music, art, and physical education teachers, guidance counselors, speech therapists and licensed social workers and psychological personnel. Other personnel directly supporting instruction assigned to the school may include paraprofessionals and other personnel such as non-licensed social workers.  Personnel not involved in providing instructional support MAY NOT be included.   Other personnel that MAY NOT be included are clerical, custodial, food service, transportation, and any other personnel not providing instructional support. Do not include any PreK personnel or 100% federally funded personnel.  Please remember that federally funded would include Title I, II, III, IV, V, Homeless, CTE, SPED, etc.  If personnel is paid from federal and state/local funds indicate the portion of the salary for each personnel in the appropriate column 3 or column 4."]
[1,null,2,3,4]
["LAST Name of \nEmployee","FIRST Name of Employee","Position\n(please be specific)","Federally Funded Salary","State/Local funded Salary"]
[]
[]
[]
[]
[]
[]
[]
[]
[]
[]
[]
[]
[]
[]
[]
[]
[]
[]
[]
[]
[]
[]
[]
[]
[]
[]
[]
[]
[]
[]
[]
[]
[]
[]
[]
[]
[null,null,"Total",null,{"$f":"SUM(E57:E92,E11:E47)","v":0}]

{"sheet":"Instr Salaries School 6","index":7,"n_rows":93,"n_cols":5,"rows_kept":93,"cut":false,"hidden":false,"merged":[[1,0,1,4],[0,0,0,4],[47,0,47,4],[48,0,48,4],[49,1,49,4],[92,2,92,3],[2,1,2,4],[3,1,3,4],[4,1,4,4],[7,0,7,4],[8,0,8,1],[51,1,51,4],[52,1,52,4],[5,1,5,4],[6,0,6,4],[50,1,50,4],[53,0,53,4],[54,0,54,1]]}
["Instructional Personnel- Salary (REQUIRED to be kept on file for monitoring purposes)"]
[]
["LEA Name:  ",{"$f":"Schools!$E$3","v":0}]
["School Name:",{"$f":"Schools!$A$15","v":0}]
["School Grade Span:",{"$f":"Schools!$B$15","v":0}]
["School Year:",{"$f":"Schools!$E$5","v":0}]
[]
["Instructional personnel includes all licensed classroom teachers and other licensed personnel assigned to the school who provide services that support instruction: principals, assistant principals, instructional coaches, librarians, music, art, and physical education teachers, guidance counselors, speech therapists and licensed social workers and psychological personnel. Other personnel directly supporting instruction assigned to the school may include paraprofessionals and other personnel such as non-licensed social workers.  Personnel not involved in providing instructional support MAY NOT be included.   Other personnel that MAY NOT be included are clerical, custodial, food service, transportation, and any other personnel not providing instructional support. Do not include any PreK personnel or 100% federally funded personnel.  Please remember that federally funded would include Title I, II, III, IV, V, Homeless, CTE, SPED, etc.  If personnel is paid from federal and state/local funds indicate the portion of the salary for each personnel in the appropriate column 3 or column 4."]
[1,null,2,3,4]
["LAST Name of \nEmployee","FIRST Name of Employee","Position\n(please be specific)","Federally Funded Instructional Salary","State/Local Funded Instructional Salary"]
[]
[]
[]
[]
[]
[]
[]
[]
[]
[]
[]
[]
[]
[]
[]
[]
[]
[]
[]
[]
[]
[]
[]
[]
[]
[]
[]
[]
[]
[]
[]
[]
[]
[]
[]
[]
[]
["Instructional Personnel- Salary (REQUIRED to be kept on file for monitoring purposes)"]
[]
["LEA Name:  ",{"$f":"B3","v":0}]
["School Name:",0]
["School Grade Span:",0]
["School Year:",0]
["Instructional personnel includes all licensed classroom teachers and other licensed personnel assigned to the school who provide services that support instruction: principals, assistant principals, instructional coaches, librarians, music, art, and physical education teachers, guidance counselors, speech therapists and licensed social workers and psychological personnel. Other personnel directly supporting instruction assigned to the school may include paraprofessionals and other personnel such as non-licensed social workers.  Personnel not involved in providing instructional support MAY NOT be included.   Other personnel that MAY NOT be included are clerical, custodial, food service, transportation, and any other personnel not providing instructional support. Do not include any PreK personnel or 100% federally funded personnel.  Please remember that federally funded would include Title I, II, III, IV, V, Homeless, CTE, SPED, etc.  If personnel is paid from federal and state/local funds indicate the portion of the salary for each personnel in the appropriate column 3 or column 4."]
[1,null,2,3,4]
["LAST Name of \nEmployee","FIRST Name of Employee","Position\n(please be specific)","Federally Funded Salary","State/Local funded Salary"]
[]
[]
[]
[]
[]
[]
[]
[]
[]
[]
[]
[]
[]
[]
[]
[]
[]
[]
[]
[]
[]
[]
[]
[]
[]
[]
[]
[]
[]
[]
[]
[]
[]
[]
[]
[]
[null,null,"Total",null,{"$f":"SUM(E57:E92,E11:E47)","v":0}]

{"sheet":"Instr Salaries School 7","index":8,"n_rows":93,"n_cols":5,"rows_kept":93,"cut":false,"hidden":false,"merged":[[1,0,1,4],[0,0,0,4],[47,0,47,4],[48,0,48,4],[49,1,49,4],[92,2,92,3],[2,1,2,4],[3,1,3,4],[4,1,4,4],[7,0,7,4],[8,0,8,1],[51,1,51,4],[52,1,52,4],[5,1,5,4],[6,0,6,4],[50,1,50,4],[53,0,53,4],[54,0,54,1]]}
["Instructional Personnel- Salary (REQUIRED to be kept on file for monitoring purposes)"]
[]
["LEA Name:  ",{"$f":"Schools!$E$3","v":0}]
["School Name:",{"$f":"Schools!$A$16","v":0}]
["School Grade Span:",{"$f":"Schools!$B$16","v":0}]
["School Year:",{"$f":"Schools!$E$5","v":0}]
[]
["Instructional personnel includes all licensed classroom teachers and other licensed personnel assigned to the school who provide services that support instruction: principals, assistant principals, instructional coaches, librarians, music, art, and physical education teachers, guidance counselors, speech therapists and licensed social workers and psychological personnel. Other personnel directly supporting instruction assigned to the school may include paraprofessionals and other personnel such as non-licensed social workers.  Personnel not involved in providing instructional support MAY NOT be included.   Other personnel that MAY NOT be included are clerical, custodial, food service, transportation, and any other personnel not providing instructional support. Do not include any PreK personnel or 100% federally funded personnel.  Please remember that federally funded would include Title I, II, III, IV, V, Homeless, CTE, SPED, etc.  If personnel is paid from federal and state/local funds indicate the portion of the salary for each personnel in the appropriate column 3 or column 4."]
[1,null,2,3,4]
["LAST Name of \nEmployee","FIRST Name of Employee","Position\n(please be specific)","Federally Funded Instructional Salary","State/Local Funded Instructional Salary"]
[]
[]
[]
[]
[]
[]
[]
[]
[]
[]
[]
[]
[]
[]
[]
[]
[]
[]
[]
[]
[]
[]
[]
[]
[]
[]
[]
[]
[]
[]
[]
[]
[]
[]
[]
[]
[]
["Instructional Personnel- Salary (REQUIRED to be kept on file for monitoring purposes)"]
[]
["LEA Name:  ",{"$f":"B3","v":0}]
["School Name:",0]
["School Grade Span:",0]
["School Year:",0]
["Instructional personnel includes all licensed classroom teachers and other licensed personnel assigned to the school who provide services that support instruction: principals, assistant principals, instructional coaches, librarians, music, art, and physical education teachers, guidance counselors, speech therapists and licensed social workers and psychological personnel. Other personnel directly supporting instruction assigned to the school may include paraprofessionals and other personnel such as non-licensed social workers.  Personnel not involved in providing instructional support MAY NOT be included.   Other personnel that MAY NOT be included are clerical, custodial, food service, transportation, and any other personnel not providing instructional support. Do not include any PreK personnel or 100% federally funded personnel.  Please remember that federally funded would include Title I, II, III, IV, V, Homeless, CTE, SPED, etc.  If personnel is paid from federal and state/local funds indicate the portion of the salary for each personnel in the appropriate column 3 or column 4."]
[1,null,2,3,4]
["LAST Name of \nEmployee","FIRST Name of Employee","Position\n(please be specific)","Federally Funded Salary","State/Local funded Salary"]
[]
[]
[]
[]
[]
[]
[]
[]
[]
[]
[]
[]
[]
[]
[]
[]
[]
[]
[]
[]
[]
[]
[]
[]
[]
[]
[]
[]
[]
[]
[]
[]
[]
[]
[]
[]
[null,null,"Total",null,{"$f":"SUM(E57:E92,E11:E47)","v":0}]

{"sheet":"Instr Salaries School 8","index":9,"n_rows":93,"n_cols":5,"rows_kept":93,"cut":false,"hidden":false,"merged":[[1,0,1,4],[0,0,0,4],[47,0,47,4],[48,0,48,4],[49,1,49,4],[92,2,92,3],[2,1,2,4],[3,1,3,4],[4,1,4,4],[7,0,7,4],[8,0,8,1],[51,1,51,4],[52,1,52,4],[5,1,5,4],[6,0,6,4],[50,1,50,4],[53,0,53,4],[54,0,54,1]]}
["Instructional Personnel- Salary (REQUIRED to be kept on file for monitoring purposes)"]
[]
["LEA Name:  ",{"$f":"Schools!$E$3","v":0}]
["School Name:",{"$f":"Schools!$A$17","v":0}]
["School Grade Span:",{"$f":"Schools!$B$17","v":0}]
["School Year:",{"$f":"Schools!$E$5","v":0}]
[]
["Instructional personnel includes all licensed classroom teachers and other licensed personnel assigned to the school who provide services that support instruction: principals, assistant principals, instructional coaches, librarians, music, art, and physical education teachers, guidance counselors, speech therapists and licensed social workers and psychological personnel. Other personnel directly supporting instruction assigned to the school may include paraprofessionals and other personnel such as non-licensed social workers.  Personnel not involved in providing instructional support MAY NOT be included.   Other personnel that MAY NOT be included are clerical, custodial, food service, transportation, and any other personnel not providing instructional support. Do not include any PreK personnel or 100% federally funded personnel.  Please remember that federally funded would include Title I, II, III, IV, V, Homeless, CTE, SPED, etc.  If personnel is paid from federal and state/local funds indicate the portion of the salary for each personnel in the appropriate column 3 or column 4."]
[1,null,2,3,4]
["LAST Name of \nEmployee","FIRST Name of Employee","Position\n(please be specific)","Federally Funded Instructional Salary","State/Local Funded Instructional Salary"]
[]
[]
[]
[]
[]
[]
[]
[]
[]
[]
[]
[]
[]
[]
[]
[]
[]
[]
[]
[]
[]
[]
[]
[]
[]
[]
[]
[]
[]
[]
[]
[]
[]
[]
[]
[]
[]
["Instructional Personnel- Salary (REQUIRED to be kept on file for monitoring purposes)"]
[]
["LEA Name:  ",{"$f":"B3","v":0}]
["School Name:",0]
["School Grade Span:",0]
["School Year:",0]
["Instructional personnel includes all licensed classroom teachers and other licensed personnel assigned to the school who provide services that support instruction: principals, assistant principals, instructional coaches, librarians, music, art, and physical education teachers, guidance counselors, speech therapists and licensed social workers and psychological personnel. Other personnel directly supporting instruction assigned to the school may include paraprofessionals and other personnel such as non-licensed social workers.  Personnel not involved in providing instructional support MAY NOT be included.   Other personnel that MAY NOT be included are clerical, custodial, food service, transportation, and any other personnel not providing instructional support. Do not include any PreK personnel or 100% federally funded personnel.  Please remember that federally funded would include Title I, II, III, IV, V, Homeless, CTE, SPED, etc.  If personnel is paid from federal and state/local funds indicate the portion of the salary for each personnel in the appropriate column 3 or column 4."]
[1,null,2,3,4]
["LAST Name of \nEmployee","FIRST Name of Employee","Position\n(please be specific)","Federally Funded Salary","State/Local funded Salary"]
[]
[]
[]
[]
[]
[]
[]
[]
[]
[]
[]
[]
[]
[]
[]
[]
[]
[]
[]
[]
[]
[]
[]
[]
[]
[]
[]
[]
[]
[]
[]
[]
[]
[]
[]
[]
[null,null,"Total",null,{"$f":"SUM(E57:E92,E11:E47)","v":0}]

{"sheet":"Instr Salaries School 9","index":10,"n_rows":93,"n_cols":5,"rows_kept":93,"cut":false,"hidden":false,"merged":[[1,0,1,4],[0,0,0,4],[47,0,47,4],[48,0,48,4],[49,1,49,4],[92,2,92,3],[2,1,2,4],[3,1,3,4],[4,1,4,4],[7,0,7,4],[8,0,8,1],[51,1,51,4],[52,1,52,4],[5,1,5,4],[6,0,6,4],[50,1,50,4],[53,0,53,4],[54,0,54,1]]}
["Instructional Personnel- Salary (REQUIRED to be kept on file for monitoring purposes)"]
[]
["LEA Name:  ",{"$f":"Schools!$E$3","v":0}]
["School Name:",{"$f":"Schools!$A$18","v":0}]
["School Grade Span:",{"$f":"Schools!$B$18","v":0}]
["School Year:",{"$f":"Schools!$E$5","v":0}]
[]
["Instructional personnel includes all licensed classroom teachers and other licensed personnel assigned to the school who provide services that support instruction: principals, assistant principals, instructional coaches, librarians, music, art, and physical education teachers, guidance counselors, speech therapists and licensed social workers and psychological personnel. Other personnel directly supporting instruction assigned to the school may include paraprofessionals and other personnel such as non-licensed social workers.  Personnel not involved in providing instructional support MAY NOT be included.   Other personnel that MAY NOT be included are clerical, custodial, food service, transportation, and any other personnel not providing instructional support. Do not include any PreK personnel or 100% federally funded personnel.  Please remember that federally funded would include Title I, II, III, IV, V, Homeless, CTE, SPED, etc.  If personnel is paid from federal and state/local funds indicate the portion of the salary for each personnel in the appropriate column 3 or column 4."]
[1,null,2,3,4]
["LAST Name of \nEmployee","FIRST Name of Employee","Position\n(please be specific)","Federally Funded Instructional Salary","State/Local Funded Instructional Salary"]
[]
[]
[]
[]
[]
[]
[]
[]
[]
[]
[]
[]
[]
[]
[]
[]
[]
[]
[]
[]
[]
[]
[]
[]
[]
[]
[]
[]
[]
[]
[]
[]
[]
[]
[]
[]
[]
["Instructional Personnel- Salary (REQUIRED to be kept on file for monitoring purposes)"]
[]
["LEA Name:  ",{"$f":"B3","v":0}]
["School Name:",0]
["School Grade Span:",0]
["School Year:",0]
["Instructional personnel includes all licensed classroom teachers and other licensed personnel assigned to the school who provide services that support instruction: principals, assistant principals, instructional coaches, librarians, music, art, and physical education teachers, guidance counselors, speech therapists and licensed social workers and psychological personnel. Other personnel directly supporting instruction assigned to the school may include paraprofessionals and other personnel such as non-licensed social workers.  Personnel not involved in providing instructional support MAY NOT be included.   Other personnel that MAY NOT be included are clerical, custodial, food service, transportation, and any other personnel not providing instructional support. Do not include any PreK personnel or 100% federally funded personnel.  Please remember that federally funded would include Title I, II, III, IV, V, Homeless, CTE, SPED, etc.  If personnel is paid from federal and state/local funds indicate the portion of the salary for each personnel in the appropriate column 3 or column 4."]
[1,null,2,3,4]
["LAST Name of \nEmployee","FIRST Name of Employee","Position\n(please be specific)","Federally Funded Salary","State/Local funded Salary"]
[]
[]
[]
[]
[]
[]
[]
[]
[]
[]
[]
[]
[]
[]
[]
[]
[]
[]
[]
[]
[]
[]
[]
[]
[]
[]
[]
[]
[]
[]
[]
[]
[]
[]
[]
[]
[null,null,"Total",null,{"$f":"SUM(E57:E92,E11:E47)","v":0}]

{"sheet":"Instr Salaries School 10","index":11,"n_rows":93,"n_cols":5,"rows_kept":93,"cut":false,"hidden":false,"merged":[[1,0,1,4],[0,0,0,4],[47,0,47,4],[48,0,48,4],[49,1,49,4],[92,2,92,3],[2,1,2,4],[3,1,3,4],[4,1,4,4],[7,0,7,4],[8,0,8,1],[51,1,51,4],[52,1,52,4],[5,1,5,4],[6,0,6,4],[50,1,50,4],[53,0,53,4],[54,0,54,1]]}
["Instructional Personnel- Salary (REQUIRED to be kept on file for monitoring purposes)"]
[]
["LEA Name:  ",{"$f":"Schools!$E$3","v":0}]
["School Name:",{"$f":"Schools!$A$19","v":0}]
["School Grade Span:",{"$f":"Schools!$B$19","v":0}]
["School Year:",{"$f":"Schools!$E$5","v":0}]
[]
["Instructional personnel includes all licensed classroom teachers and other licensed personnel assigned to the school who provide services that support instruction: principals, assistant principals, instructional coaches, librarians, music, art, and physical education teachers, guidance counselors, speech therapists and licensed social workers and psychological personnel. Other personnel directly supporting instruction assigned to the school may include paraprofessionals and other personnel such as non-licensed social workers.  Personnel not involved in providing instructional support MAY NOT be included.   Other personnel that MAY NOT be included are clerical, custodial, food service, transportation, and any other personnel not providing instructional support. Do not include any PreK personnel or 100% federally funded personnel.  Please remember that federally funded would include Title I, II, III, IV, V, Homeless, CTE, SPED, etc.  If personnel is paid from federal and state/local funds indicate the portion of the salary for each personnel in the appropriate column 3 or column 4."]
[1,null,2,3,4]
["LAST Name of \nEmployee","FIRST Name of Employee","Position\n(please be specific)","Federally Funded Instructional Salary","State/Local Funded Instructional Salary"]
[]
[]
[]
[]
[]
[]
[]
[]
[]
[]
[]
[]
[]
[]
[]
[]
[]
[]
[]
[]
[]
[]
[]
[]
[]
[]
[]
[]
[]
[]
[]
[]
[]
[]
[]
[]
[]
["Instructional Personnel- Salary (REQUIRED to be kept on file for monitoring purposes)"]
[]
["LEA Name:  ",{"$f":"B3","v":0}]
["School Name:",0]
["School Grade Span:",0]
["School Year:",0]
["Instructional personnel includes all licensed classroom teachers and other licensed personnel assigned to the school who provide services that support instruction: principals, assistant principals, instructional coaches, librarians, music, art, and physical education teachers, guidance counselors, speech therapists and licensed social workers and psychological personnel. Other personnel directly supporting instruction assigned to the school may include paraprofessionals and other personnel such as non-licensed social workers.  Personnel not involved in providing instructional support MAY NOT be included.   Other personnel that MAY NOT be included are clerical, custodial, food service, transportation, and any other personnel not providing instructional support. Do not include any PreK personnel or 100% federally funded personnel.  Please remember that federally funded would include Title I, II, III, IV, V, Homeless, CTE, SPED, etc.  If personnel is paid from federal and state/local funds indicate the portion of the salary for each personnel in the appropriate column 3 or column 4."]
[1,null,2,3,4]
["LAST Name of \nEmployee","FIRST Name of Employee","Position\n(please be specific)","Federally Funded Salary","State/Local funded Salary"]
[]
[]
[]
[]
[]
[]
[]
[]
[]
[]
[]
[]
[]
[]
[]
[]
[]
[]
[]
[]
[]
[]
[]
[]
[]
[]
[]
[]
[]
[]
[]
[]
[]
[]
[]
[]
[null,null,"Total",null,{"$f":"SUM(E57:E92,E11:E47)","v":0}]

{"sheet":"Instr Salaries School 11","index":12,"n_rows":93,"n_cols":5,"rows_kept":93,"cut":false,"hidden":false,"merged":[[1,0,1,4],[0,0,0,4],[47,0,47,4],[48,0,48,4],[49,1,49,4],[92,2,92,3],[2,1,2,4],[3,1,3,4],[4,1,4,4],[7,0,7,4],[8,0,8,1],[51,1,51,4],[52,1,52,4],[5,1,5,4],[6,0,6,4],[50,1,50,4],[53,0,53,4],[54,0,54,1]]}
["Instructional Personnel- Salary (REQUIRED to be kept on file for monitoring purposes)"]
[]
["LEA Name:  ",{"$f":"Schools!$E$3","v":0}]
["School Name:",{"$f":"Schools!$A$20","v":0}]
["School Grade Span:",{"$f":"Schools!$B$20","v":0}]
["School Year:",{"$f":"Schools!$E$5","v":0}]
[]
["Instructional personnel includes all licensed classroom teachers and other licensed personnel assigned to the school who provide services that support instruction: principals, assistant principals, instructional coaches, librarians, music, art, and physical education teachers, guidance counselors, speech therapists and licensed social workers and psychological personnel. Other personnel directly supporting instruction assigned to the school may include paraprofessionals and other personnel such as non-licensed social workers.  Personnel not involved in providing instructional support MAY NOT be included.   Other personnel that MAY NOT be included are clerical, custodial, food service, transportation, and any other personnel not providing instructional support. Do not include any PreK personnel or 100% federally funded personnel.  Please remember that federally funded would include Title I, II, III, IV, V, Homeless, CTE, SPED, etc.  If personnel is paid from federal and state/local funds indicate the portion of the salary for each personnel in the appropriate column 3 or column 4."]
[1,null,2,3,4]
["LAST Name of \nEmployee","FIRST Name of Employee","Position\n(please be specific)","Federally Funded Instructional Salary","State/Local Funded Instructional Salary"]
[]
[]
[]
[]
[]
[]
[]
[]
[]
[]
[]
[]
[]
[]
[]
[]
[]
[]
[]
[]
[]
[]
[]
[]
[]
[]
[]
[]
[]
[]
[]
[]
[]
[]
[]
[]
[]
["Instructional Personnel- Salary (REQUIRED to be kept on file for monitoring purposes)"]
[]
["LEA Name:  ",{"$f":"B3","v":0}]
["School Name:",0]
["School Grade Span:",0]
["School Year:",0]
["Instructional personnel includes all licensed classroom teachers and other licensed personnel assigned to the school who provide services that support instruction: principals, assistant principals, instructional coaches, librarians, music, art, and physical education teachers, guidance counselors, speech therapists and licensed social workers and psychological personnel. Other personnel directly supporting instruction assigned to the school may include paraprofessionals and other personnel such as non-licensed social workers.  Personnel not involved in providing instructional support MAY NOT be included.   Other personnel that MAY NOT be included are clerical, custodial, food service, transportation, and any other personnel not providing instructional support. Do not include any PreK personnel or 100% federally funded personnel.  Please remember that federally funded would include Title I, II, III, IV, V, Homeless, CTE, SPED, etc.  If personnel is paid from federal and state/local funds indicate the portion of the salary for each personnel in the appropriate column 3 or column 4."]
[1,null,2,3,4]
["LAST Name of \nEmployee","FIRST Name of Employee","Position\n(please be specific)","Federally Funded Salary","State/Local funded Salary"]
[]
[]
[]
[]
[]
[]
[]
[]
[]
[]
[]
[]
[]
[]
[]
[]
[]
[]
[]
[]
[]
[]
[]
[]
[]
[]
[]
[]
[]
[]
[]
[]
[]
[]
[]
[]
[null,null,"Total",null,{"$f":"SUM(E57:E92,E11:E47)","v":0}]

{"sheet":"Instr Salaries School 12","index":13,"n_rows":93,"n_cols":5,"rows_kept":93,"cut":false,"hidden":false,"merged":[[1,0,1,4],[0,0,0,4],[47,0,47,4],[48,0,48,4],[49,1,49,4],[92,2,92,3],[2,1,2,4],[3,1,3,4],[4,1,4,4],[7,0,7,4],[8,0,8,1],[51,1,51,4],[52,1,52,4],[5,1,5,4],[6,0,6,4],[50,1,50,4],[53,0,53,4],[54,0,54,1]]}
["Instructional Personnel- Salary (REQUIRED to be kept on file for monitoring purposes)"]
[]
["LEA Name:  ",{"$f":"Schools!$E$3","v":0}]
["School Name:",{"$f":"Schools!$A$21","v":0}]
["School Grade Span:",{"$f":"Schools!$B$21","v":0}]
["School Year:",{"$f":"Schools!$E$5","v":0}]
[]
["Instructional personnel includes all licensed classroom teachers and other licensed personnel assigned to the school who provide services that support instruction: principals, assistant principals, instructional coaches, librarians, music, art, and physical education teachers, guidance counselors, speech therapists and licensed social workers and psychological personnel. Other personnel directly supporting instruction assigned to the school may include paraprofessionals and other personnel such as non-licensed social workers.  Personnel not involved in providing instructional support MAY NOT be included.   Other personnel that MAY NOT be included are clerical, custodial, food service, transportation, and any other personnel not providing instructional support. Do not include any PreK personnel or 100% federally funded personnel.  Please remember that federally funded would include Title I, II, III, IV, V, Homeless, CTE, SPED, etc.  If personnel is paid from federal and state/local funds indicate the portion of the salary for each personnel in the appropriate column 3 or column 4."]
[1,null,2,3,4]
["LAST Name of \nEmployee","FIRST Name of Employee","Position\n(please be specific)","Federally Funded Instructional Salary","State/Local Funded Instructional Salary"]
[]
[]
[]
[]
[]
[]
[]
[]
[]
[]
[]
[]
[]
[]
[]
[]
[]
[]
[]
[]
[]
[]
[]
[]
[]
[]
[]
[]
[]
[]
[]
[]
[]
[]
[]
[]
[]
["Instructional Personnel- Salary (REQUIRED to be kept on file for monitoring purposes)"]
[]
["LEA Name:  ",{"$f":"B3","v":0}]
["School Name:",0]
["School Grade Span:",0]
["School Year:",0]
["Instructional personnel includes all licensed classroom teachers and other licensed personnel assigned to the school who provide services that support instruction: principals, assistant principals, instructional coaches, librarians, music, art, and physical education teachers, guidance counselors, speech therapists and licensed social workers and psychological personnel. Other personnel directly supporting instruction assigned to the school may include paraprofessionals and other personnel such as non-licensed social workers.  Personnel not involved in providing instructional support MAY NOT be included.   Other personnel that MAY NOT be included are clerical, custodial, food service, transportation, and any other personnel not providing instructional support. Do not include any PreK personnel or 100% federally funded personnel.  Please remember that federally funded would include Title I, II, III, IV, V, Homeless, CTE, SPED, etc.  If personnel is paid from federal and state/local funds indicate the portion of the salary for each personnel in the appropriate column 3 or column 4."]
[1,null,2,3,4]
["LAST Name of \nEmployee","FIRST Name of Employee","Position\n(please be specific)","Federally Funded Salary","State/Local funded Salary"]
[]
[]
[]
[]
[]
[]
[]
[]
[]
[]
[]
[]
[]
[]
[]
[]
[]
[]
[]
[]
[]
[]
[]
[]
[]
[]
[]
[]
[]
[]
[]
[]
[]
[]
[]
[]
[null,null,"Total",null,{"$f":"SUM(E57:E92,E11:E47)","v":0}]

{"sheet":"Instr Salaries School 13","index":14,"n_rows":93,"n_cols":5,"rows_kept":93,"cut":false,"hidden":false,"merged":[[1,0,1,4],[0,0,0,4],[47,0,47,4],[48,0,48,4],[49,1,49,4],[92,2,92,3],[2,1,2,4],[3,1,3,4],[4,1,4,4],[7,0,7,4],[8,0,8,1],[51,1,51,4],[52,1,52,4],[5,1,5,4],[6,0,6,4],[50,1,50,4],[53,0,53,4],[54,0,54,1]]}
["Instructional Personnel- Salary (REQUIRED to be kept on file for monitoring purposes)"]
[]
["LEA Name:  ",{"$f":"Schools!$E$3","v":0}]
["School Name:",{"$f":"Schools!$A$22","v":0}]
["School Grade Span:",{"$f":"Schools!$B$22","v":0}]
["School Year:",{"$f":"Schools!$E$5","v":0}]
[]
["Instructional personnel includes all licensed classroom teachers and other licensed personnel assigned to the school who provide services that support instruction: principals, assistant principals, instructional coaches, librarians, music, art, and physical education teachers, guidance counselors, speech therapists and licensed social workers and psychological personnel. Other personnel directly supporting instruction assigned to the school may include paraprofessionals and other personnel such as non-licensed social workers.  Personnel not involved in providing instructional support MAY NOT be included.   Other personnel that MAY NOT be included are clerical, custodial, food service, transportation, and any other personnel not providing instructional support. Do not include any PreK personnel or 100% federally funded personnel.  Please remember that federally funded would include Title I, II, III, IV, V, Homeless, CTE, SPED, etc.  If personnel is paid from federal and state/local funds indicate the portion of the salary for each personnel in the appropriate column 3 or column 4."]
[1,null,2,3,4]
["LAST Name of \nEmployee","FIRST Name of Employee","Position\n(please be specific)","Federally Funded Instructional Salary","State/Local Funded Instructional Salary"]
[]
[]
[]
[]
[]
[]
[]
[]
[]
[]
[]
[]
[]
[]
[]
[]
[]
[]
[]
[]
[]
[]
[]
[]
[]
[]
[]
[]
[]
[]
[]
[]
[]
[]
[]
[]
[]
["Instructional Personnel- Salary (REQUIRED to be kept on file for monitoring purposes)"]
[]
["LEA Name:  ",{"$f":"B3","v":0}]
["School Name:",0]
["School Grade Span:",0]
["School Year:",0]
["Instructional personnel includes all licensed classroom teachers and other licensed personnel assigned to the school who provide services that support instruction: principals, assistant principals, instructional coaches, librarians, music, art, and physical education teachers, guidance counselors, speech therapists and licensed social workers and psychological personnel. Other personnel directly supporting instruction assigned to the school may include paraprofessionals and other personnel such as non-licensed social workers.  Personnel not involved in providing instructional support MAY NOT be included.   Other personnel that MAY NOT be included are clerical, custodial, food service, transportation, and any other personnel not providing instructional support. Do not include any PreK personnel or 100% federally funded personnel.  Please remember that federally funded would include Title I, II, III, IV, V, Homeless, CTE, SPED, etc.  If personnel is paid from federal and state/local funds indicate the portion of the salary for each personnel in the appropriate column 3 or column 4."]
[1,null,2,3,4]
["LAST Name of \nEmployee","FIRST Name of Employee","Position\n(please be specific)","Federally Funded Salary","State/Local funded Salary"]
[]
[]
[]
[]
[]
[]
[]
[]
[]
[]
[]
[]
[]
[]
[]
[]
[]
[]
[]
[]
[]
[]
[]
[]
[]
[]
[]
[]
[]
[]
[]
[]
[]
[]
[]
[]
[null,null,"Total",null,{"$f":"SUM(E57:E92,E11:E47)","v":0}]

{"sheet":"Instr Salaries School 14","index":15,"n_rows":93,"n_cols":5,"rows_kept":93,"cut":false,"hidden":false,"merged":[[1,0,1,4],[0,0,0,4],[47,0,47,4],[48,0,48,4],[49,1,49,4],[92,2,92,3],[2,1,2,4],[3,1,3,4],[4,1,4,4],[7,0,7,4],[8,0,8,1],[51,1,51,4],[52,1,52,4],[5,1,5,4],[6,0,6,4],[50,1,50,4],[53,0,53,4],[54,0,54,1]]}
["Instructional Personnel- Salary (REQUIRED to be kept on file for monitoring purposes)"]
[]
["LEA Name:  ",{"$f":"Schools!$E$3","v":0}]
["School Name:",{"$f":"Schools!$A$23","v":0}]
["School Grade Span:",{"$f":"Schools!$B$23","v":0}]
["School Year:",{"$f":"Schools!$E$5","v":0}]
[]
["Instructional personnel includes all licensed classroom teachers and other licensed personnel assigned to the school who provide services that support instruction: principals, assistant principals, instructional coaches, librarians, music, art, and physical education teachers, guidance counselors, speech therapists and licensed social workers and psychological personnel. Other personnel directly supporting instruction assigned to the school may include paraprofessionals and other personnel such as non-licensed social workers.  Personnel not involved in providing instructional support MAY NOT be included.   Other personnel that MAY NOT be included are clerical, custodial, food service, transportation, and any other personnel not providing instructional support. Do not include any PreK personnel or 100% federally funded personnel.  Please remember that federally funded would include Title I, II, III, IV, V, Homeless, CTE, SPED, etc.  If personnel is paid from federal and state/local funds indicate the portion of the salary for each personnel in the appropriate column 3 or column 4."]
[1,null,2,3,4]
["LAST Name of \nEmployee","FIRST Name of Employee","Position\n(please be specific)","Federally Funded Instructional Salary","State/Local Funded Instructional Salary"]
[]
[]
[]
[]
[]
[]
[]
[]
[]
[]
[]
[]
[]
[]
[]
[]
[]
[]
[]
[]
[]
[]
[]
[]
[]
[]
[]
[]
[]
[]
[]
[]
[]
[]
[]
[]
[]
["Instructional Personnel- Salary (REQUIRED to be kept on file for monitoring purposes)"]
[]
["LEA Name:  ",{"$f":"B3","v":0}]
["School Name:",0]
["School Grade Span:",0]
["School Year:",0]
["Instructional personnel includes all licensed classroom teachers and other licensed personnel assigned to the school who provide services that support instruction: principals, assistant principals, instructional coaches, librarians, music, art, and physical education teachers, guidance counselors, speech therapists and licensed social workers and psychological personnel. Other personnel directly supporting instruction assigned to the school may include paraprofessionals and other personnel such as non-licensed social workers.  Personnel not involved in providing instructional support MAY NOT be included.   Other personnel that MAY NOT be included are clerical, custodial, food service, transportation, and any other personnel not providing instructional support. Do not include any PreK personnel or 100% federally funded personnel.  Please remember that federally funded would include Title I, II, III, IV, V, Homeless, CTE, SPED, etc.  If personnel is paid from federal and state/local funds indicate the portion of the salary for each personnel in the appropriate column 3 or column 4."]
[1,null,2,3,4]
["LAST Name of \nEmployee","FIRST Name of Employee","Position\n(please be specific)","Federally Funded Salary","State/Local funded Salary"]
[]
[]
[]
[]
[]
[]
[]
[]
[]
[]
[]
[]
[]
[]
[]
[]
[]
[]
[]
[]
[]
[]
[]
[]
[]
[]
[]
[]
[]
[]
[]
[]
[]
[]
[]
[]
[null,null,"Total",null,{"$f":"SUM(E57:E92,E11:E47)","v":0}]

{"sheet":"Instr Salaries School 15","index":16,"n_rows":93,"n_cols":5,"rows_kept":93,"cut":false,"hidden":false,"merged":[[1,0,1,4],[0,0,0,4],[47,0,47,4],[48,0,48,4],[49,1,49,4],[92,2,92,3],[2,1,2,4],[3,1,3,4],[4,1,4,4],[7,0,7,4],[8,0,8,1],[51,1,51,4],[52,1,52,4],[5,1,5,4],[6,0,6,4],[50,1,50,4],[53,0,53,4],[54,0,54,1]]}
["Instructional Personnel- Salary (REQUIRED to be kept on file for monitoring purposes)"]
[]
["LEA Name:  ",{"$f":"Schools!$E$3","v":0}]
["School Name:",{"$f":"Schools!$A$24","v":0}]
["School Grade Span:",{"$f":"Schools!$B$24","v":0}]
["School Year:",{"$f":"Schools!$E$5","v":0}]
[]
["Instructional personnel includes all licensed classroom teachers and other licensed personnel assigned to the school who provide services that support instruction: principals, assistant principals, instructional coaches, librarians, music, art, and physical education teachers, guidance counselors, speech therapists and licensed social workers and psychological personnel. Other personnel directly supporting instruction assigned to the school may include paraprofessionals and other personnel such as non-licensed social workers.  Personnel not involved in providing instructional support MAY NOT be included.   Other personnel that MAY NOT be included are clerical, custodial, food service, transportation, and any other personnel not providing instructional support. Do not include any PreK personnel or 100% federally funded personnel.  Please remember that federally funded would include Title I, II, III, IV, V, Homeless, CTE, SPED, etc.  If personnel is paid from federal and state/local funds indicate the portion of the salary for each personnel in the appropriate column 3 or column 4."]
[1,null,2,3,4]
["LAST Name of \nEmployee","FIRST Name of Employee","Position\n(please be specific)","Federally Funded Instructional Salary","State/Local Funded Instructional Salary"]
[]
[]
[]
[]
[]
[]
[]
[]
[]
[]
[]
[]
[]
[]
[]
[]
[]
[]
[]
[]
[]
[]
[]
[]
[]
[]
[]
[]
[]
[]
[]
[]
[]
[]
[]
[]
[]
["Instructional Personnel- Salary (REQUIRED to be kept on file for monitoring purposes)"]
[]
["LEA Name:  ",{"$f":"B3","v":0}]
["School Name:",0]
["School Grade Span:",0]
["School Year:",0]
["Instructional personnel includes all licensed classroom teachers and other licensed personnel assigned to the school who provide services that support instruction: principals, assistant principals, instructional coaches, librarians, music, art, and physical education teachers, guidance counselors, speech therapists and licensed social workers and psychological personnel. Other personnel directly supporting instruction assigned to the school may include paraprofessionals and other personnel such as non-licensed social workers.  Personnel not involved in providing instructional support MAY NOT be included.   Other personnel that MAY NOT be included are clerical, custodial, food service, transportation, and any other personnel not providing instructional support. Do not include any PreK personnel or 100% federally funded personnel.  Please remember that federally funded would include Title I, II, III, IV, V, Homeless, CTE, SPED, etc.  If personnel is paid from federal and state/local funds indicate the portion of the salary for each personnel in the appropriate column 3 or column 4."]
[1,null,2,3,4]
["LAST Name of \nEmployee","FIRST Name of Employee","Position\n(please be specific)","Federally Funded Salary","State/Local funded Salary"]
[]
[]
[]
[]
[]
[]
[]
[]
[]
[]
[]
[]
[]
[]
[]
[]
[]
[]
[]
[]
[]
[]
[]
[]
[]
[]
[]
[]
[]
[]
[]
[]
[]
[]
[]
[]
[null,null,"Total",null,{"$f":"SUM(E57:E92,E11:E47)","v":0}]

{"sheet":"Instr Salaries School 16","index":17,"n_rows":93,"n_cols":5,"rows_kept":93,"cut":false,"hidden":false,"merged":[[1,0,1,4],[0,0,0,4],[47,0,47,4],[48,0,48,4],[49,1,49,4],[92,2,92,3],[2,1,2,4],[3,1,3,4],[4,1,4,4],[7,0,7,4],[8,0,8,1],[51,1,51,4],[52,1,52,4],[5,1,5,4],[6,0,6,4],[50,1,50,4],[53,0,53,4],[54,0,54,1]]}
["Instructional Personnel- Salary (REQUIRED to be kept on file for monitoring purposes)"]
[]
["LEA Name:  ",{"$f":"Schools!$E$3","v":0}]
["School Name:",{"$f":"Schools!$A$25","v":0}]
["School Grade Span:",{"$f":"Schools!$B$25","v":0}]
["School Year:",{"$f":"Schools!$E$5","v":0}]
[]
["Instructional personnel includes all licensed classroom teachers and other licensed personnel assigned to the school who provide services that support instruction: principals, assistant principals, instructional coaches, librarians, music, art, and physical education teachers, guidance counselors, speech therapists and licensed social workers and psychological personnel. Other personnel directly supporting instruction assigned to the school may include paraprofessionals and other personnel such as non-licensed social workers.  Personnel not involved in providing instructional support MAY NOT be included.   Other personnel that MAY NOT be included are clerical, custodial, food service, transportation, and any other personnel not providing instructional support. Do not include any PreK personnel or 100% federally funded personnel.  Please remember that federally funded would include Title I, II, III, IV, V, Homeless, CTE, SPED, etc.  If personnel is paid from federal and state/local funds indicate the portion of the salary for each personnel in the appropriate column 3 or column 4."]
[1,null,2,3,4]
["LAST Name of \nEmployee","FIRST Name of Employee","Position\n(please be specific)","Federally Funded Instructional Salary","State/Local Funded Instructional Salary"]
[]
[]
[]
[]
[]
[]
[]
[]
[]
[]
[]
[]
[]
[]
[]
[]
[]
[]
[]
[]
[]
[]
[]
[]
[]
[]
[]
[]
[]
[]
[]
[]
[]
[]
[]
[]
[]
["Instructional Personnel- Salary (REQUIRED to be kept on file for monitoring purposes)"]
[]
["LEA Name:  ",{"$f":"B3","v":0}]
["School Name:",0]
["School Grade Span:",0]
["School Year:",0]
["Instructional personnel includes all licensed classroom teachers and other licensed personnel assigned to the school who provide services that support instruction: principals, assistant principals, instructional coaches, librarians, music, art, and physical education teachers, guidance counselors, speech therapists and licensed social workers and psychological personnel. Other personnel directly supporting instruction assigned to the school may include paraprofessionals and other personnel such as non-licensed social workers.  Personnel not involved in providing instructional support MAY NOT be included.   Other personnel that MAY NOT be included are clerical, custodial, food service, transportation, and any other personnel not providing instructional support. Do not include any PreK personnel or 100% federally funded personnel.  Please remember that federally funded would include Title I, II, III, IV, V, Homeless, CTE, SPED, etc.  If personnel is paid from federal and state/local funds indicate the portion of the salary for each personnel in the appropriate column 3 or column 4."]
[1,null,2,3,4]
["LAST Name of \nEmployee","FIRST Name of Employee","Position\n(please be specific)","Federally Funded Salary","State/Local funded Salary"]
[]
[]
[]
[]
[]
[]
[]
[]
[]
[]
[]
[]
[]
[]
[]
[]
[]
[]
[]
[]
[]
[]
[]
[]
[]
[]
[]
[]
[]
[]
[]
[]
[]
[]
[]
[]
[null,null,"Total",null,{"$f":"SUM(E57:E92,E11:E47)","v":0}]

{"sheet":"Instr Salaries School 17","index":18,"n_rows":93,"n_cols":5,"rows_kept":93,"cut":false,"hidden":false,"merged":[[1,0,1,4],[0,0,0,4],[47,0,47,4],[48,0,48,4],[49,1,49,4],[92,2,92,3],[2,1,2,4],[3,1,3,4],[4,1,4,4],[7,0,7,4],[8,0,8,1],[51,1,51,4],[52,1,52,4],[5,1,5,4],[6,0,6,4],[50,1,50,4],[53,0,53,4],[54,0,54,1]]}
["Instructional Personnel- Salary (REQUIRED to be kept on file for monitoring purposes)"]
[]
["LEA Name:  ",{"$f":"Schools!$E$3","v":0}]
["School Name:",{"$f":"Schools!$A$26","v":0}]
["School Grade Span:",{"$f":"Schools!$B$26","v":0}]
["School Year:",{"$f":"Schools!$E$5","v":0}]
[]
["Instructional personnel includes all licensed classroom teachers and other licensed personnel assigned to the school who provide services that support instruction: principals, assistant principals, instructional coaches, librarians, music, art, and physical education teachers, guidance counselors, speech therapists and licensed social workers and psychological personnel. Other personnel directly supporting instruction assigned to the school may include paraprofessionals and other personnel such as non-licensed social workers.  Personnel not involved in providing instructional support MAY NOT be included.   Other personnel that MAY NOT be included are clerical, custodial, food service, transportation, and any other personnel not providing instructional support. Do not include any PreK personnel or 100% federally funded personnel.  Please remember that federally funded would include Title I, II, III, IV, V, Homeless, CTE, SPED, etc.  If personnel is paid from federal and state/local funds indicate the portion of the salary for each personnel in the appropriate column 3 or column 4."]
[1,null,2,3,4]
["LAST Name of \nEmployee","FIRST Name of Employee","Position\n(please be specific)","Federally Funded Instructional Salary","State/Local Funded Instructional Salary"]
[]
[]
[]
[]
[]
[]
[]
[]
[]
[]
[]
[]
[]
[]
[]
[]
[]
[]
[]
[]
[]
[]
[]
[]
[]
[]
[]
[]
[]
[]
[]
[]
[]
[]
[]
[]
[]
["Instructional Personnel- Salary (REQUIRED to be kept on file for monitoring purposes)"]
[]
["LEA Name:  ",{"$f":"B3","v":0}]
["School Name:",0]
["School Grade Span:",0]
["School Year:",0]
["Instructional personnel includes all licensed classroom teachers and other licensed personnel assigned to the school who provide services that support instruction: principals, assistant principals, instructional coaches, librarians, music, art, and physical education teachers, guidance counselors, speech therapists and licensed social workers and psychological personnel. Other personnel directly supporting instruction assigned to the school may include paraprofessionals and other personnel such as non-licensed social workers.  Personnel not involved in providing instructional support MAY NOT be included.   Other personnel that MAY NOT be included are clerical, custodial, food service, transportation, and any other personnel not providing instructional support. Do not include any PreK personnel or 100% federally funded personnel.  Please remember that federally funded would include Title I, II, III, IV, V, Homeless, CTE, SPED, etc.  If personnel is paid from federal and state/local funds indicate the portion of the salary for each personnel in the appropriate column 3 or column 4."]
[1,null,2,3,4]
["LAST Name of \nEmployee","FIRST Name of Employee","Position\n(please be specific)","Federally Funded Salary","State/Local funded Salary"]
[]
[]
[]
[]
[]
[]
[]
[]
[]
[]
[]
[]
[]
[]
[]
[]
[]
[]
[]
[]
[]
[]
[]
[]
[]
[]
[]
[]
[]
[]
[]
[]
[]
[]
[]
[]
[null,null,"Total",null,{"$f":"SUM(E57:E92,E11:E47)","v":0}]

{"sheet":"Instr Salaries School 18","index":19,"n_rows":93,"n_cols":5,"rows_kept":93,"cut":false,"hidden":false,"merged":[[1,0,1,4],[0,0,0,4],[47,0,47,4],[48,0,48,4],[49,1,49,4],[92,2,92,3],[2,1,2,4],[3,1,3,4],[4,1,4,4],[7,0,7,4],[8,0,8,1],[51,1,51,4],[52,1,52,4],[5,1,5,4],[6,0,6,4],[50,1,50,4],[53,0,53,4],[54,0,54,1]]}
["Instructional Personnel- Salary (REQUIRED to be kept on file for monitoring purposes)"]
[]
["LEA Name:  ",{"$f":"Schools!$E$3","v":0}]
["School Name:",{"$f":"Schools!$A$27","v":0}]
["School Grade Span:",{"$f":"Schools!$B$27","v":0}]
["School Year:",{"$f":"Schools!$E$5","v":0}]
[]
["Instructional personnel includes all licensed classroom teachers and other licensed personnel assigned to the school who provide services that support instruction: principals, assistant principals, instructional coaches, librarians, music, art, and physical education teachers, guidance counselors, speech therapists and licensed social workers and psychological personnel. Other personnel directly supporting instruction assigned to the school may include paraprofessionals and other personnel such as non-licensed social workers.  Personnel not involved in providing instructional support MAY NOT be included.   Other personnel that MAY NOT be included are clerical, custodial, food service, transportation, and any other personnel not providing instructional support. Do not include any PreK personnel or 100% federally funded personnel.  Please remember that federally funded would include Title I, II, III, IV, V, Homeless, CTE, SPED, etc.  If personnel is paid from federal and state/local funds indicate the portion of the salary for each personnel in the appropriate column 3 or column 4."]
[1,null,2,3,4]
["LAST Name of \nEmployee","FIRST Name of Employee","Position\n(please be specific)","Federally Funded Instructional Salary","State/Local Funded Instructional Salary"]
[]
[]
[]
[]
[]
[]
[]
[]
[]
[]
[]
[]
[]
[]
[]
[]
[]
[]
[]
[]
[]
[]
[]
[]
[]
[]
[]
[]
[]
[]
[]
[]
[]
[]
[]
[]
[]
["Instructional Personnel- Salary (REQUIRED to be kept on file for monitoring purposes)"]
[]
["LEA Name:  ",{"$f":"B3","v":0}]
["School Name:",0]
["School Grade Span:",0]
["School Year:",0]
["Instructional personnel includes all licensed classroom teachers and other licensed personnel assigned to the school who provide services that support instruction: principals, assistant principals, instructional coaches, librarians, music, art, and physical education teachers, guidance counselors, speech therapists and licensed social workers and psychological personnel. Other personnel directly supporting instruction assigned to the school may include paraprofessionals and other personnel such as non-licensed social workers.  Personnel not involved in providing instructional support MAY NOT be included.   Other personnel that MAY NOT be included are clerical, custodial, food service, transportation, and any other personnel not providing instructional support. Do not include any PreK personnel or 100% federally funded personnel.  Please remember that federally funded would include Title I, II, III, IV, V, Homeless, CTE, SPED, etc.  If personnel is paid from federal and state/local funds indicate the portion of the salary for each personnel in the appropriate column 3 or column 4."]
[1,null,2,3,4]
["LAST Name of \nEmployee","FIRST Name of Employee","Position\n(please be specific)","Federally Funded Salary","State/Local funded Salary"]
[]
[]
[]
[]
[]
[]
[]
[]
[]
[]
[]
[]
[]
[]
[]
[]
[]
[]
[]
[]
[]
[]
[]
[]
[]
[]
[]
[]
[]
[]
[]
[]
[]
[]
[]
[]
[null,null,"Total",null,{"$f":"SUM(E57:E92,E11:E47)","v":0}]

{"sheet":"Instr Salaries School 19","index":20,"n_rows":93,"n_cols":5,"rows_kept":93,"cut":false,"hidden":false,"merged":[[1,0,1,4],[0,0,0,4],[47,0,47,4],[48,0,48,4],[49,1,49,4],[92,2,92,3],[2,1,2,4],[3,1,3,4],[4,1,4,4],[7,0,7,4],[8,0,8,1],[51,1,51,4],[52,1,52,4],[5,1,5,4],[6,0,6,4],[50,1,50,4],[53,0,53,4],[54,0,54,1]]}
["Instructional Personnel- Salary (REQUIRED to be kept on file for monitoring purposes)"]
[]
["LEA Name:  ",{"$f":"Schools!$E$3","v":0}]
["School Name:",{"$f":"Schools!$A$28","v":0}]
["School Grade Span:",{"$f":"Schools!$B$28","v":0}]
["School Year:",{"$f":"Schools!$E$5","v":0}]
[]
["Instructional personnel includes all licensed classroom teachers and other licensed personnel assigned to the school who provide services that support instruction: principals, assistant principals, instructional coaches, librarians, music, art, and physical education teachers, guidance counselors, speech therapists and licensed social workers and psychological personnel. Other personnel directly supporting instruction assigned to the school may include paraprofessionals and other personnel such as non-licensed social workers.  Personnel not involved in providing instructional support MAY NOT be included.   Other personnel that MAY NOT be included are clerical, custodial, food service, transportation, and any other personnel not providing instructional support. Do not include any PreK personnel or 100% federally funded personnel.  Please remember that federally funded would include Title I, II, III, IV, V, Homeless, CTE, SPED, etc.  If personnel is paid from federal and state/local funds indicate the portion of the salary for each personnel in the appropriate column 3 or column 4."]
[1,null,2,3,4]
["LAST Name of \nEmployee","FIRST Name of Employee","Position\n(please be specific)","Federally Funded Instructional Salary","State/Local Funded Instructional Salary"]
[]
[]
[]
[]
[]
[]
[]
[]
[]
[]
[]
[]
[]
[]
[]
[]
[]
[]
[]
[]
[]
[]
[]
[]
[]
[]
[]
[]
[]
[]
[]
[]
[]
[]
[]
[]
[]
["Instructional Personnel- Salary (REQUIRED to be kept on file for monitoring purposes)"]
[]
["LEA Name:  ",{"$f":"B3","v":0}]
["School Name:",0]
["School Grade Span:",0]
["School Year:",0]
["Instructional personnel includes all licensed classroom teachers and other licensed personnel assigned to the school who provide services that support instruction: principals, assistant principals, instructional coaches, librarians, music, art, and physical education teachers, guidance counselors, speech therapists and licensed social workers and psychological personnel. Other personnel directly supporting instruction assigned to the school may include paraprofessionals and other personnel such as non-licensed social workers.  Personnel not involved in providing instructional support MAY NOT be included.   Other personnel that MAY NOT be included are clerical, custodial, food service, transportation, and any other personnel not providing instructional support. Do not include any PreK personnel or 100% federally funded personnel.  Please remember that federally funded would include Title I, II, III, IV, V, Homeless, CTE, SPED, etc.  If personnel is paid from federal and state/local funds indicate the portion of the salary for each personnel in the appropriate column 3 or column 4."]
[1,null,2,3,4]
["LAST Name of \nEmployee","FIRST Name of Employee","Position\n(please be specific)","Federally Funded Salary","State/Local funded Salary"]
[]
[]
[]
[]
[]
[]
[]
[]
[]
[]
[]
[]
[]
[]
[]
[]
[]
[]
[]
[]
[]
[]
[]
[]
[]
[]
[]
[]
[]
[]
[]
[]
[]
[]
[]
[]
[null,null,"Total",null,{"$f":"SUM(E57:E92,E11:E47)","v":0}]

{"sheet":"Instr Salaries School 20","index":21,"n_rows":93,"n_cols":5,"rows_kept":93,"cut":false,"hidden":false,"merged":[[1,0,1,4],[0,0,0,4],[47,0,47,4],[48,0,48,4],[50,1,50,4],[92,2,92,3],[2,1,2,4],[3,1,3,4],[4,1,4,4],[7,0,7,4],[8,0,8,1],[49,1,49,4],[51,1,51,4],[52,1,52,4],[5,1,5,4],[6,0,6,4],[53,0,53,4],[54,0,54,1]]}
["Instructional Personnel- Salary (REQUIRED to be kept on file for monitoring purposes)"]
[]
["LEA Name:  ",{"$f":"Schools!$E$3","v":0}]
["School Name:",{"$f":"Schools!$B$29","v":0}]
["School Grade Span:",{"$f":"Schools!$A$29","v":0}]
["School Year:",{"$f":"Schools!$E$5","v":0}]
[]
["Instructional personnel includes all licensed classroom teachers and other licensed personnel assigned to the school who provide services that support instruction: principals, assistant principals, instructional coaches, librarians, music, art, and physical education teachers, guidance counselors, speech therapists and licensed social workers and psychological personnel. Other personnel directly supporting instruction assigned to the school may include paraprofessionals and other personnel such as non-licensed social workers.  Personnel not involved in providing instructional support MAY NOT be included.   Other personnel that MAY NOT be included are clerical, custodial, food service, transportation, and any other personnel not providing instructional support. Do not include any PreK personnel or 100% federally funded personnel.  Please remember that federally funded would include Title I, II, III, IV, V, Homeless, CTE, SPED, etc.  If personnel is paid from federal and state/local funds indicate the portion of the salary for each personnel in the appropriate column 3 or column 4."]
[1,null,2,3,4]
["LAST Name of \nEmployee","FIRST Name of Employee","Position\n(please be specific)","Federally Funded Instructional Salary","State/Local Funded Instructional Salary"]
[]
[]
[]
[]
[]
[]
[]
[]
[]
[]
[]
[]
[]
[]
[]
[]
[]
[]
[]
[]
[]
[]
[]
[]
[]
[]
[]
[]
[]
[]
[]
[]
[]
[]
[]
[]
[]
["Instructional Personnel- Salary (REQUIRED to be kept on file for monitoring purposes)"]
[]
["LEA Name:  ",{"$f":"B3","v":0}]
["School Name:",0]
["School Grade Span:",0]
["School Year:",0]
["Instructional personnel includes all licensed classroom teachers and other licensed personnel assigned to the school who provide services that support instruction: principals, assistant principals, instructional coaches, librarians, music, art, and physical education teachers, guidance counselors, speech therapists and licensed social workers and psychological personnel. Other personnel directly supporting instruction assigned to the school may include paraprofessionals and other personnel such as non-licensed social workers.  Personnel not involved in providing instructional support MAY NOT be included.   Other personnel that MAY NOT be included are clerical, custodial, food service, transportation, and any other personnel not providing instructional support. Do not include any PreK personnel or 100% federally funded personnel.  Please remember that federally funded would include Title I, II, III, IV, V, Homeless, CTE, SPED, etc.  If personnel is paid from federal and state/local funds indicate the portion of the salary for each personnel in the appropriate column 3 or column 4."]
[1,null,2,3,4]
["LAST Name of \nEmployee","FIRST Name of Employee","Position\n(please be specific)","Federally Funded Salary","State/Local funded Salary"]
[]
[]
[]
[]
[]
[]
[]
[]
[]
[]
[]
[]
[]
[]
[]
[]
[]
[]
[]
[]
[]
[]
[]
[]
[]
[]
[]
[]
[]
[]
[]
[]
[]
[]
[]
[]
[null,null,"Total",null,{"$f":"SUM(E57:E92,E11:E47)","v":0}]

{"sheet":"Instr Salaries School 21","index":22,"n_rows":93,"n_cols":5,"rows_kept":93,"cut":false,"hidden":false,"merged":[[1,0,1,4],[0,0,0,4],[47,0,47,4],[48,0,48,4],[50,1,50,4],[92,2,92,3],[2,1,2,4],[3,1,3,4],[4,1,4,4],[7,0,7,4],[8,0,8,1],[49,1,49,4],[51,1,51,4],[52,1,52,4],[5,1,5,4],[6,0,6,4],[53,0,53,4],[54,0,54,1]]}
["Instructional Personnel- Salary (REQUIRED to be kept on file for monitoring purposes)"]
[]
["LEA Name:  ",{"$f":"Schools!$E$3","v":0}]
["School Name:",{"$f":"Schools!$A$30","v":0}]
["School Grade Span:",{"$f":"Schools!$B$30","v":0}]
["School Year:",{"$f":"Schools!$E$5","v":0}]
[]
["Instructional personnel includes all licensed classroom teachers and other licensed personnel assigned to the school who provide services that support instruction: principals, assistant principals, instructional coaches, librarians, music, art, and physical education teachers, guidance counselors, speech therapists and licensed social workers and psychological personnel. Other personnel directly supporting instruction assigned to the school may include paraprofessionals and other personnel such as non-licensed social workers.  Personnel not involved in providing instructional support MAY NOT be included.   Other personnel that MAY NOT be included are clerical, custodial, food service, transportation, and any other personnel not providing instructional support. Do not include any PreK personnel or 100% federally funded personnel.  Please remember that federally funded would include Title I, II, III, IV, V, Homeless, CTE, SPED, etc.  If personnel is paid from federal and state/local funds indicate the portion of the salary for each personnel in the appropriate column 3 or column 4."]
[1,null,2,3,4]
["LAST Name of \nEmployee","FIRST Name of Employee","Position\n(please be specific)","Federally Funded Instructional Salary","State/Local Funded Instructional Salary"]
[]
[]
[]
[]
[]
[]
[]
[]
[]
[]
[]
[]
[]
[]
[]
[]
[]
[]
[]
[]
[]
[]
[]
[]
[]
[]
[]
[]
[]
[]
[]
[]
[]
[]
[]
[]
[]
["Instructional Personnel- Salary (REQUIRED to be kept on file for monitoring purposes)"]
[]
["LEA Name:  ",{"$f":"B3","v":0}]
["School Name:",0]
["School Grade Span:",0]
["School Year:",0]
["Instructional personnel includes all licensed classroom teachers and other licensed personnel assigned to the school who provide services that support instruction: principals, assistant principals, instructional coaches, librarians, music, art, and physical education teachers, guidance counselors, speech therapists and licensed social workers and psychological personnel. Other personnel directly supporting instruction assigned to the school may include paraprofessionals and other personnel such as non-licensed social workers.  Personnel not involved in providing instructional support MAY NOT be included.   Other personnel that MAY NOT be included are clerical, custodial, food service, transportation, and any other personnel not providing instructional support. Do not include any PreK personnel or 100% federally funded personnel.  Please remember that federally funded would include Title I, II, III, IV, V, Homeless, CTE, SPED, etc.  If personnel is paid from federal and state/local funds indicate the portion of the salary for each personnel in the appropriate column 3 or column 4."]
[1,null,2,3,4]
["LAST Name of \nEmployee","FIRST Name of Employee","Position\n(please be specific)","Federally Funded Salary","State/Local funded Salary"]
[]
[]
[]
[]
[]
[]
[]
[]
[]
[]
[]
[]
[]
[]
[]
[]
[]
[]
[]
[]
[]
[]
[]
[]
[]
[]
[]
[]
[]
[]
[]
[]
[]
[]
[]
[]
[null,null,"Total",null,{"$f":"SUM(E57:E92,E11:E47)","v":0}]

{"sheet":"Instr Salaries School 22","index":23,"n_rows":93,"n_cols":5,"rows_kept":93,"cut":false,"hidden":false,"merged":[[5,1,5,4],[52,1,52,4],[54,0,54,1],[92,2,92,3],[2,1,2,4],[3,1,3,4],[4,1,4,4],[7,0,7,4],[8,0,8,1],[49,1,49,4],[50,1,50,4],[51,1,51,4],[53,0,53,4]]}
["Instructional Personnel- Salary","(REQUIRED to be kept on file for monitoring purposes)"]
[]
["LEA Name:  ",{"$f":"Schools!$E$3","v":0}]
["School Name:",{"$f":"Schools!$A$43","v":0}]
["School Grade Span:",{"$f":"Schools!$B$43","v":0}]
["School Year:",{"$f":"Schools!$E$5","v":0}]
[]
["Instructional personnel includes all licensed classroom teachers and other licensed personnel assigned to the school who provide services that support instruction: principals, assistant principals, instructional coaches, librarians, music, art, and physical education teachers, guidance counselors, speech therapists and licensed social workers and psychological personnel. Other personnel directly supporting instruction assigned to the school may include paraprofessionals and other personnel such as non-licensed social workers.  Personnel not involved in providing instructional support MAY NOT be included.   Other personnel that MAY NOT be included are clerical, custodial, food service, transportation, and any other personnel not providing instructional support. Do not include any PreK personnel or 100% federally funded personnel.  Please remember that federally funded would include Title I, II, III, IV, V, Homeless, CTE, SPED, etc.  If personnel is paid from federal and state/local funds indicate the portion of the salary for each personnel in the appropriate column 3 or column 4."]
[1,null,2,3,4]
["LAST Name of \nEmployee","FIRST Name of Employee","Position\n(please be specific)","Federally Funded Instructional Salary","State/Local Funded Instructional Salary"]
[]
[]
[]
[]
[]
[]
[]
[]
[]
[]
[]
[]
[]
[]
[]
[]
[]
[]
[]
[]
[]
[]
[]
[]
[]
[]
[]
[]
[]
[]
[]
[]
[]
[]
[]
[]
[]
["Instructional Personnel- Salary","(REQUIRED to be kept on file for monitoring purposes)"]
[]
["LEA Name:  ",{"$f":"B3","v":0}]
["School Name:",0]
["School Grade Span:",0]
["School Year:",0]
["Instructional personnel includes all licensed classroom teachers and other licensed personnel assigned to the school who provide services that support instruction: principals, assistant principals, instructional coaches, librarians, music, art, and physical education teachers, guidance counselors, speech therapists and licensed social workers and psychological personnel. Other personnel directly supporting instruction assigned to the school may include paraprofessionals and other personnel such as non-licensed social workers.  Personnel not involved in providing instructional support MAY NOT be included.   Other personnel that MAY NOT be included are clerical, custodial, food service, transportation, and any other personnel not providing instructional support. Do not include any PreK personnel or 100% federally funded personnel.  Please remember that federally funded would include Title I, II, III, IV, V, Homeless, CTE, SPED, etc.  If personnel is paid from federal and state/local funds indicate the portion of the salary for each personnel in the appropriate column 3 or column 4."]
[1,null,2,3,4]
["LAST Name of \nEmployee","FIRST Name of Employee","Position\n(please be specific)","Federally Funded Salary","State/Local Funded Salary"]
[]
[]
[]
[]
[]
[]
[]
[]
[]
[]
[]
[]
[]
[]
[]
[]
[]
[]
[]
[]
[]
[]
[]
[]
[]
[]
[]
[]
[]
[]
[]
[]
[]
[]
[]
[]
[null,null,"Totals",null,{"$f":"SUM(E57:E92,E11:E46)","v":0}]

{"sheet":"Instr Salaries School 23","index":24,"n_rows":93,"n_cols":5,"rows_kept":93,"cut":false,"hidden":false,"merged":[[5,1,5,4],[52,1,52,4],[54,0,54,1],[92,2,92,3],[2,1,2,4],[3,1,3,4],[4,1,4,4],[7,0,7,4],[8,0,8,1],[49,1,49,4],[50,1,50,4],[51,1,51,4],[53,0,53,4]]}
["Instructional Personnel- Salary","(REQUIRED to be kept on file for monitoring purposes)"]
[]
["LEA Name:  ",{"$f":"Schools!$E$3","v":0}]
["School Name:",{"$f":"Schools!$A$44","v":0}]
["School Grade Span:",{"$f":"Schools!$B$44","v":0}]
["School Year:",{"$f":"Schools!$E$5","v":0}]
[]
["Instructional personnel includes all licensed classroom teachers and other licensed personnel assigned to the school who provide services that support instruction: principals, assistant principals, instructional coaches, librarians, music, art, and physical education teachers, guidance counselors, speech therapists and licensed social workers and psychological personnel. Other personnel directly supporting instruction assigned to the school may include paraprofessionals and other personnel such as non-licensed social workers.  Personnel not involved in providing instructional support MAY NOT be included.   Other personnel that MAY NOT be included are clerical, custodial, food service, transportation, and any other personnel not providing instructional support. Do not include any PreK personnel or 100% federally funded personnel.  Please remember that federally funded would include Title I, II, III, IV, V, Homeless, CTE, SPED, etc.  If personnel is paid from federal and state/local funds indicate the portion of the salary for each personnel in the appropriate column 3 or column 4."]
[1,null,2,3,4]
["LAST Name of \nEmployee","FIRST Name of Employee","Position\n(please be specific)","Federally Funded Instructional Salary","State/Local Funded Instructional Salary"]
[]
[]
[]
[]
[]
[]
[]
[]
[]
[]
[]
[]
[]
[]
[]
[]
[]
[]
[]
[]
[]
[]
[]
[]
[]
[]
[]
[]
[]
[]
[]
[]
[]
[]
[]
[]
[]
["Instructional Personnel- Salary","(REQUIRED to be kept on file for monitoring purposes)"]
[]
["LEA Name:  ",{"$f":"B3","v":0}]
["School Name:",0]
["School Grade Span:",0]
["School Year:",0]
["Instructional personnel includes all licensed classroom teachers and other licensed personnel assigned to the school who provide services that support instruction: principals, assistant principals, instructional coaches, librarians, music, art, and physical education teachers, guidance counselors, speech therapists and licensed social workers and psychological personnel. Other personnel directly supporting instruction assigned to the school may include paraprofessionals and other personnel such as non-licensed social workers.  Personnel not involved in providing instructional support MAY NOT be included.   Other personnel that MAY NOT be included are clerical, custodial, food service, transportation, and any other personnel not providing instructional support. Do not include any PreK personnel or 100% federally funded personnel.  Please remember that federally funded would include Title I, II, III, IV, V, Homeless, CTE, SPED, etc.  If personnel is paid from federal and state/local funds indicate the portion of the salary for each personnel in the appropriate column 3 or column 4."]
[1,null,2,3,4]
["LAST Name of \nEmployee","FIRST Name of Employee","Position\n(please be specific)","Federally Funded Salary","State/Local Funded Salary"]
[]
[]
[]
[]
[]
[]
[]
[]
[]
[]
[]
[]
[]
[]
[]
[]
[]
[]
[]
[]
[]
[]
[]
[]
[]
[]
[]
[]
[]
[]
[]
[]
[]
[]
[]
[]
[null,null,"Totals",null,{"$f":"SUM(E57:E92,E11:E46)","v":0}]

{"sheet":"Instr Salaries School 24","index":25,"n_rows":93,"n_cols":5,"rows_kept":93,"cut":false,"hidden":false,"merged":[[5,1,5,4],[52,1,52,4],[54,0,54,1],[92,2,92,3],[2,1,2,4],[3,1,3,4],[4,1,4,4],[7,0,7,4],[8,0,8,1],[49,1,49,4],[50,1,50,4],[51,1,51,4],[53,0,53,4]]}
["Instructional Personnel- Salary","(REQUIRED to be kept on file for monitoring purposes)"]
[]
["LEA Name:  ",{"$f":"Schools!$E$3","v":0}]
["School Name:",{"$f":"Schools!$A$45","v":0}]
["School Grade Span:",{"$f":"Schools!$B$45","v":0}]
["School Year:",{"$f":"Schools!$E$5","v":0}]
[]
["Instructional personnel includes all licensed classroom teachers and other licensed personnel assigned to the school who provide services that support instruction: principals, assistant principals, instructional coaches, librarians, music, art, and physical education teachers, guidance counselors, speech therapists and licensed social workers and psychological personnel. Other personnel directly supporting instruction assigned to the school may include paraprofessionals and other personnel such as non-licensed social workers.  Personnel not involved in providing instructional support MAY NOT be included.   Other personnel that MAY NOT be included are clerical, custodial, food service, transportation, and any other personnel not providing instructional support. Do not include any PreK personnel or 100% federally funded personnel.  Please remember that federally funded would include Title I, II, III, IV, V, Homeless, CTE, SPED, etc.  If personnel is paid from federal and state/local funds indicate the portion of the salary for each personnel in the appropriate column 3 or column 4."]
[1,null,2,3,4]
["LAST Name of \nEmployee","FIRST Name of Employee","Position\n(please be specific)","Federally Funded Instructional Salary","State/Local Funded Instructional Salary"]
[]
[]
[]
[]
[]
[]
[]
[]
[]
[]
[]
[]
[]
[]
[]
[]
[]
[]
[]
[]
[]
[]
[]
[]
[]
[]
[]
[]
[]
[]
[]
[]
[]
[]
[]
[]
[]
["Instructional Personnel- Salary","(REQUIRED to be kept on file for monitoring purposes)"]
[]
["LEA Name:  ",{"$f":"B3","v":0}]
["School Name:",0]
["School Grade Span:",0]
["School Year:",0]
["Instructional personnel includes all licensed classroom teachers and other licensed personnel assigned to the school who provide services that support instruction: principals, assistant principals, instructional coaches, librarians, music, art, and physical education teachers, guidance counselors, speech therapists and licensed social workers and psychological personnel. Other personnel directly supporting instruction assigned to the school may include paraprofessionals and other personnel such as non-licensed social workers.  Personnel not involved in providing instructional support MAY NOT be included.   Other personnel that MAY NOT be included are clerical, custodial, food service, transportation, and any other personnel not providing instructional support. Do not include any PreK personnel or 100% federally funded personnel.  Please remember that federally funded would include Title I, II, III, IV, V, Homeless, CTE, SPED, etc.  If personnel is paid from federal and state/local funds indicate the portion of the salary for each personnel in the appropriate column 3 or column 4."]
[1,null,2,3,4]
["LAST Name of \nEmployee","FIRST Name of Employee","Position\n(please be specific)","Federally Funded Salary","State/Local Funded Salary"]
[]
[]
[]
[]
[]
[]
[]
[]
[]
[]
[]
[]
[]
[]
[]
[]
[]
[]
[]
[]
[]
[]
[]
[]
[]
[]
[]
[]
[]
[]
[]
[]
[]
[]
[]
[]
[null,null,"Totals",null,{"$f":"SUM(E57:E92,E11:E46)","v":0}]

{"sheet":"Instr Salaries School 25","index":26,"n_rows":93,"n_cols":5,"rows_kept":93,"cut":false,"hidden":false,"merged":[[5,1,5,4],[52,1,52,4],[54,0,54,1],[92,2,92,3],[2,1,2,4],[3,1,3,4],[4,1,4,4],[7,0,7,4],[8,0,8,1],[49,1,49,4],[50,1,50,4],[51,1,51,4],[53,0,53,4]]}
["Instructional Personnel- Salary","(REQUIRED to be kept on file for monitoring purposes)"]
[]
["LEA Name:  ",{"$f":"Schools!$E$3","v":0}]
["School Name:",{"$f":"Schools!$A$46","v":0}]
["School Grade Span:",{"$f":"Schools!$B$46","v":0}]
["School Year:",{"$f":"Schools!$E$5","v":0}]
[]
["Instructional personnel includes all licensed classroom teachers and other licensed personnel assigned to the school who provide services that support instruction: principals, assistant principals, instructional coaches, librarians, music, art, and physical education teachers, guidance counselors, speech therapists and licensed social workers and psychological personnel. Other personnel directly supporting instruction assigned to the school may include paraprofessionals and other personnel such as non-licensed social workers.  Personnel not involved in providing instructional support MAY NOT be included.   Other personnel that MAY NOT be included are clerical, custodial, food service, transportation, and any other personnel not providing instructional support. Do not include any PreK personnel or 100% federally funded personnel.  Please remember that federally funded would include Title I, II, III, IV, V, Homeless, CTE, SPED, etc.  If personnel is paid from federal and state/local funds indicate the portion of the salary for each personnel in the appropriate column 3 or column 4."]
[1,null,2,3,4]
["LAST Name of \nEmployee","FIRST Name of Employee","Position\n(please be specific)","Federally Funded Instructional Salary","State/Local Funded Instructional Salary"]
[]
[]
[]
[]
[]
[]
[]
[]
[]
[]
[]
[]
[]
[]
[]
[]
[]
[]
[]
[]
[]
[]
[]
[]
[]
[]
[]
[]
[]
[]
[]
[]
[]
[]
[]
[]
[]
["Instructional Personnel- Salary","(REQUIRED to be kept on file for monitoring purposes)"]
[]
["LEA Name:  ",{"$f":"B3","v":0}]
["School Name:",0]
["School Grade Span:",0]
["School Year:",0]
["Instructional personnel includes all licensed classroom teachers and other licensed personnel assigned to the school who provide services that support instruction: principals, assistant principals, instructional coaches, librarians, music, art, and physical education teachers, guidance counselors, speech therapists and licensed social workers and psychological personnel. Other personnel directly supporting instruction assigned to the school may include paraprofessionals and other personnel such as non-licensed social workers.  Personnel not involved in providing instructional support MAY NOT be included.   Other personnel that MAY NOT be included are clerical, custodial, food service, transportation, and any other personnel not providing instructional support. Do not include any PreK personnel or 100% federally funded personnel.  Please remember that federally funded would include Title I, II, III, IV, V, Homeless, CTE, SPED, etc.  If personnel is paid from federal and state/local funds indicate the portion of the salary for each personnel in the appropriate column 3 or column 4."]
[1,null,2,3,4]
["LAST Name of \nEmployee","FIRST Name of Employee","Position\n(please be specific)","Federally Funded Salary","State/Local Funded Salary"]
[]
[]
[]
[]
[]
[]
[]
[]
[]
[]
[]
[]
[]
[]
[]
[]
[]
[]
[]
[]
[]
[]
[]
[]
[]
[]
[]
[]
[]
[]
[]
[]
[]
[]
[]
[]
[null,null,"Totals",null,{"$f":"SUM(E57:E92,E11:E46)","v":0}]

{"sheet":"Instr Salaries School 26","index":27,"n_rows":93,"n_cols":5,"rows_kept":93,"cut":false,"hidden":false,"merged":[[5,1,5,4],[52,1,52,4],[54,0,54,1],[92,2,92,3],[2,1,2,4],[3,1,3,4],[4,1,4,4],[7,0,7,4],[8,0,8,1],[49,1,49,4],[50,1,50,4],[51,1,51,4],[53,0,53,4]]}
["Instructional Personnel- Salary","(REQUIRED to be kept on file for monitoring purposes)"]
[]
["LEA Name:  ",{"$f":"Schools!$E$3","v":0}]
["School Name:",{"$f":"Schools!$A$47","v":0}]
["School Grade Span:",{"$f":"Schools!$B$47","v":0}]
["School Year:",{"$f":"Schools!$E$5","v":0}]
[]
["Instructional personnel includes all licensed classroom teachers and other licensed personnel assigned to the school who provide services that support instruction: principals, assistant principals, instructional coaches, librarians, music, art, and physical education teachers, guidance counselors, speech therapists and licensed social workers and psychological personnel. Other personnel directly supporting instruction assigned to the school may include paraprofessionals and other personnel such as non-licensed social workers.  Personnel not involved in providing instructional support MAY NOT be included.   Other personnel that MAY NOT be included are clerical, custodial, food service, transportation, and any other personnel not providing instructional support. Do not include any PreK personnel or 100% federally funded personnel.  Please remember that federally funded would include Title I, II, III, IV, V, Homeless, CTE, SPED, etc.  If personnel is paid from federal and state/local funds indicate the portion of the salary for each personnel in the appropriate column 3 or column 4."]
[1,null,2,3,4]
["LAST Name of \nEmployee","FIRST Name of Employee","Position\n(please be specific)","Federally Funded Instructional Salary","State/Local Funded Instructional Salary"]
[]
[]
[]
[]
[]
[]
[]
[]
[]
[]
[]
[]
[]
[]
[]
[]
[]
[]
[]
[]
[]
[]
[]
[]
[]
[]
[]
[]
[]
[]
[]
[]
[]
[]
[]
[]
[]
["Instructional Personnel- Salary","(REQUIRED to be kept on file for monitoring purposes)"]
[]
["LEA Name:  ",{"$f":"B3","v":0}]
["School Name:",0]
["School Grade Span:",0]
["School Year:",0]
["Instructional personnel includes all licensed classroom teachers and other licensed personnel assigned to the school who provide services that support instruction: principals, assistant principals, instructional coaches, librarians, music, art, and physical education teachers, guidance counselors, speech therapists and licensed social workers and psychological personnel. Other personnel directly supporting instruction assigned to the school may include paraprofessionals and other personnel such as non-licensed social workers.  Personnel not involved in providing instructional support MAY NOT be included.   Other personnel that MAY NOT be included are clerical, custodial, food service, transportation, and any other personnel not providing instructional support. Do not include any PreK personnel or 100% federally funded personnel.  Please remember that federally funded would include Title I, II, III, IV, V, Homeless, CTE, SPED, etc.  If personnel is paid from federal and state/local funds indicate the portion of the salary for each personnel in the appropriate column 3 or column 4."]
[1,null,2,3,4]
["LAST Name of \nEmployee","FIRST Name of Employee","Position\n(please be specific)","Federally Funded Salary","State/Local Funded Salary"]
[]
[]
[]
[]
[]
[]
[]
[]
[]
[]
[]
[]
[]
[]
[]
[]
[]
[]
[]
[]
[]
[]
[]
[]
[]
[]
[]
[]
[]
[]
[]
[]
[]
[]
[]
[]
[null,null,"Totals",null,{"$f":"SUM(E57:E92,E11:E46)","v":0}]

{"sheet":"Instr Salaries School 27","index":28,"n_rows":93,"n_cols":5,"rows_kept":93,"cut":false,"hidden":false,"merged":[[5,1,5,4],[52,1,52,4],[54,0,54,1],[92,2,92,3],[2,1,2,4],[3,1,3,4],[4,1,4,4],[7,0,7,4],[8,0,8,1],[49,1,49,4],[50,1,50,4],[51,1,51,4],[53,0,53,4]]}
["Instructional Personnel- Salary","(REQUIRED to be kept on file for monitoring purposes)"]
[]
["LEA Name:  ",{"$f":"Schools!$E$3","v":0}]
["School Name:",{"$f":"Schools!$B$48","v":0}]
["School Grade Span:",{"$f":"Schools!$A$48","v":0}]
["School Year:",{"$f":"Schools!$E$5","v":0}]
[]
["Instructional personnel includes all licensed classroom teachers and other licensed personnel assigned to the school who provide services that support instruction: principals, assistant principals, instructional coaches, librarians, music, art, and physical education teachers, guidance counselors, speech therapists and licensed social workers and psychological personnel. Other personnel directly supporting instruction assigned to the school may include paraprofessionals and other personnel such as non-licensed social workers.  Personnel not involved in providing instructional support MAY NOT be included.   Other personnel that MAY NOT be included are clerical, custodial, food service, transportation, and any other personnel not providing instructional support. Do not include any PreK personnel or 100% federally funded personnel.  Please remember that federally funded would include Title I, II, III, IV, V, Homeless, CTE, SPED, etc.  If personnel is paid from federal and state/local funds indicate the portion of the salary for each personnel in the appropriate column 3 or column 4."]
[1,null,2,3,4]
["LAST Name of \nEmployee","FIRST Name of Employee","Position\n(please be specific)","Federally Funded Instructional Salary","State/Local Funded Instructional Salary"]
[]
[]
[]
[]
[]
[]
[]
[]
[]
[]
[]
[]
[]
[]
[]
[]
[]
[]
[]
[]
[]
[]
[]
[]
[]
[]
[]
[]
[]
[]
[]
[]
[]
[]
[]
[]
[]
["Instructional Personnel- Salary","(REQUIRED to be kept on file for monitoring purposes)"]
[]
["LEA Name:  ",{"$f":"B3","v":0}]
["School Name:",0]
["School Grade Span:",0]
["School Year:",0]
["Instructional personnel includes all licensed classroom teachers and other licensed personnel assigned to the school who provide services that support instruction: principals, assistant principals, instructional coaches, librarians, music, art, and physical education teachers, guidance counselors, speech therapists and licensed social workers and psychological personnel. Other personnel directly supporting instruction assigned to the school may include paraprofessionals and other personnel such as non-licensed social workers.  Personnel not involved in providing instructional support MAY NOT be included.   Other personnel that MAY NOT be included are clerical, custodial, food service, transportation, and any other personnel not providing instructional support. Do not include any PreK personnel or 100% federally funded personnel.  Please remember that federally funded would include Title I, II, III, IV, V, Homeless, CTE, SPED, etc.  If personnel is paid from federal and state/local funds indicate the portion of the salary for each personnel in the appropriate column 3 or column 4."]
[1,null,2,3,4]
["LAST Name of \nEmployee","FIRST Name of Employee","Position\n(please be specific)","Federally Funded Salary","State/Local Funded Salary"]
[]
[]
[]
[]
[]
[]
[]
[]
[]
[]
[]
[]
[]
[]
[]
[]
[]
[]
[]
[]
[]
[]
[]
[]
[]
[]
[]
[]
[]
[]
[]
[]
[]
[]
[]
[]
[null,null,"Totals",null,{"$f":"SUM(E57:E92,E11:E46)","v":0}]

{"sheet":"Instr Salaries School 28","index":29,"n_rows":93,"n_cols":5,"rows_kept":93,"cut":false,"hidden":false,"merged":[[5,1,5,4],[52,1,52,4],[54,0,54,1],[92,2,92,3],[2,1,2,4],[3,1,3,4],[4,1,4,4],[7,0,7,4],[8,0,8,1],[49,1,49,4],[50,1,50,4],[51,1,51,4],[53,0,53,4]]}
["Instructional Personnel- Salary","(REQUIRED to be kept on file for monitoring purposes)"]
[]
["LEA Name:  ",{"$f":"Schools!$E$36","v":0}]
["School Name:",{"$f":"Schools!$A$49","v":0}]
["School Grade Span:",{"$f":"Schools!$B$49","v":0}]
["School Year:",{"$f":"Schools!$E$5","v":0}]
[]
["Instructional personnel includes all licensed classroom teachers and other licensed personnel assigned to the school who provide services that support instruction: principals, assistant principals, instructional coaches, librarians, music, art, and physical education teachers, guidance counselors, speech therapists and licensed social workers and psychological personnel. Other personnel directly supporting instruction assigned to the school may include paraprofessionals and other personnel such as non-licensed social workers.  Personnel not involved in providing instructional support MAY NOT be included.   Other personnel that MAY NOT be included are clerical, custodial, food service, transportation, and any other personnel not providing instructional support. Do not include any PreK personnel or 100% federally funded personnel.  Please remember that federally funded would include Title I, II, III, IV, V, Homeless, CTE, SPED, etc.  If personnel is paid from federal and state/local funds indicate the portion of the salary for each personnel in the appropriate column 3 or column 4."]
[1,null,2,3,4]
["LAST Name of \nEmployee","FIRST Name of Employee","Position\n(please be specific)","Federally Funded Instructional Salary","State/Local Funded Instructional Salary"]
[]
[]
[]
[]
[]
[]
[]
[]
[]
[]
[]
[]
[]
[]
[]
[]
[]
[]
[]
[]
[]
[]
[]
[]
[]
[]
[]
[]
[]
[]
[]
[]
[]
[]
[]
[]
[]
["Instructional Personnel- Salary","(REQUIRED to be kept on file for monitoring purposes)"]
[]
["LEA Name:  ",{"$f":"B3","v":0}]
["School Name:",0]
["School Grade Span:",0]
["School Year:",0]
["Instructional personnel includes all licensed classroom teachers and other licensed personnel assigned to the school who provide services that support instruction: principals, assistant principals, instructional coaches, librarians, music, art, and physical education teachers, guidance counselors, speech therapists and licensed social workers and psychological personnel. Other personnel directly supporting instruction assigned to the school may include paraprofessionals and other personnel such as non-licensed social workers.  Personnel not involved in providing instructional support MAY NOT be included.   Other personnel that MAY NOT be included are clerical, custodial, food service, transportation, and any other personnel not providing instructional support. Do not include any PreK personnel or 100% federally funded personnel.  Please remember that federally funded would include Title I, II, III, IV, V, Homeless, CTE, SPED, etc.  If personnel is paid from federal and state/local funds indicate the portion of the salary for each personnel in the appropriate column 3 or column 4."]
[1,null,2,3,4]
["LAST Name of \nEmployee","FIRST Name of Employee","Position\n(please be specific)","Federally Funded Salary","State/Local Funded Salary"]
[]
[]
[]
[]
[]
[]
[]
[]
[]
[]
[]
[]
[]
[]
[]
[]
[]
[]
[]
[]
[]
[]
[]
[]
[]
[]
[]
[]
[]
[]
[]
[]
[]
[]
[]
[]
[null,null,"Totals",null,{"$f":"SUM(E57:E92,E11:E46)","v":0}]

{"sheet":"Instr Salaries School 29","index":30,"n_rows":93,"n_cols":5,"rows_kept":93,"cut":false,"hidden":false,"merged":[[5,1,5,4],[52,1,52,4],[54,0,54,1],[92,2,92,3],[2,1,2,4],[3,1,3,4],[4,1,4,4],[7,0,7,4],[8,0,8,1],[49,1,49,4],[50,1,50,4],[51,1,51,4],[53,0,53,4]]}
["Instructional Personnel- Salary","(REQUIRED to be kept on file for monitoring purposes)"]
[]
["LEA Name:  ",{"$f":"Schools!$E$3","v":0}]
["School Name:",{"$f":"Schools!$A$50","v":0}]
["School Grade Span:",{"$f":"Schools!$B$50","v":0}]
["School Year:",{"$f":"Schools!$E$5","v":0}]
[]
["Instructional personnel includes all licensed classroom teachers and other licensed personnel assigned to the school who provide services that support instruction: principals, assistant principals, instructional coaches, librarians, music, art, and physical education teachers, guidance counselors, speech therapists and licensed social workers and psychological personnel. Other personnel directly supporting instruction assigned to the school may include paraprofessionals and other personnel such as non-licensed social workers.  Personnel not involved in providing instructional support MAY NOT be included.   Other personnel that MAY NOT be included are clerical, custodial, food service, transportation, and any other personnel not providing instructional support. Do not include any PreK personnel or 100% federally funded personnel.  Please remember that federally funded would include Title I, II, III, IV, V, Homeless, CTE, SPED, etc.  If personnel is paid from federal and state/local funds indicate the portion of the salary for each personnel in the appropriate column 3 or column 4."]
[1,null,2,3,4]
["LAST Name of \nEmployee","FIRST Name of Employee","Position\n(please be specific)","Federally Funded Instructional Salary","State/Local Funded Instructional Salary"]
[]
[]
[]
[]
[]
[]
[]
[]
[]
[]
[]
[]
[]
[]
[]
[]
[]
[]
[]
[]
[]
[]
[]
[]
[]
[]
[]
[]
[]
[]
[]
[]
[]
[]
[]
[]
[]
["Instructional Personnel- Salary","(REQUIRED to be kept on file for monitoring purposes)"]
[]
["LEA Name:  ",{"$f":"B3","v":0}]
["School Name:",0]
["School Grade Span:",0]
["School Year:",0]
["Instructional personnel includes all licensed classroom teachers and other licensed personnel assigned to the school who provide services that support instruction: principals, assistant principals, instructional coaches, librarians, music, art, and physical education teachers, guidance counselors, speech therapists and licensed social workers and psychological personnel. Other personnel directly supporting instruction assigned to the school may include paraprofessionals and other personnel such as non-licensed social workers.  Personnel not involved in providing instructional support MAY NOT be included.   Other personnel that MAY NOT be included are clerical, custodial, food service, transportation, and any other personnel not providing instructional support. Do not include any PreK personnel or 100% federally funded personnel.  Please remember that federally funded would include Title I, II, III, IV, V, Homeless, CTE, SPED, etc.  If personnel is paid from federal and state/local funds indicate the portion of the salary for each personnel in the appropriate column 3 or column 4."]
[1,null,2,3,4]
["LAST Name of \nEmployee","FIRST Name of Employee","Position\n(please be specific)","Federally Funded Salary","State/Local Funded Salary"]
[]
[]
[]
[]
[]
[]
[]
[]
[]
[]
[]
[]
[]
[]
[]
[]
[]
[]
[]
[]
[]
[]
[]
[]
[]
[]
[]
[]
[]
[]
[]
[]
[]
[]
[]
[]
[null,null,"Totals",null,{"$f":"SUM(E57:E92,E11:E46)","v":0}]

{"sheet":"Instr Salaries School 30","index":31,"n_rows":93,"n_cols":5,"rows_kept":93,"cut":false,"hidden":false,"merged":[[5,1,5,4],[52,1,52,4],[54,0,54,1],[92,2,92,3],[2,1,2,4],[3,1,3,4],[4,1,4,4],[7,0,7,4],[8,0,8,1],[49,1,49,4],[50,1,50,4],[51,1,51,4],[53,0,53,4]]}
["Instructional Personnel- Salary","(REQUIRED to be kept on file for monitoring purposes)"]
[]
["LEA Name:  ",{"$f":"Schools!$E$3","v":0}]
["School Name:",{"$f":"Schools!$A$51","v":0}]
["School Grade Span:",{"$f":"Schools!$AB51","v":0}]
["School Year:",{"$f":"Schools!$E$5","v":0}]
[]
["Instructional personnel includes all licensed classroom teachers and other licensed personnel assigned to the school who provide services that support instruction: principals, assistant principals, instructional coaches, librarians, music, art, and physical education teachers, guidance counselors, speech therapists and licensed social workers and psychological personnel. Other personnel directly supporting instruction assigned to the school may include paraprofessionals and other personnel such as non-licensed social workers.  Personnel not involved in providing instructional support MAY NOT be included.   Other personnel that MAY NOT be included are clerical, custodial, food service, transportation, and any other personnel not providing instructional support. Do not include any PreK personnel or 100% federally funded personnel.  Please remember that federally funded would include Title I, II, III, IV, V, Homeless, CTE, SPED, etc.  If personnel is paid from federal and state/local funds indicate the portion of the salary for each personnel in the appropriate column 3 or column 4."]
[1,null,2,3,4]
["LAST Name of \nEmployee","FIRST Name of Employee","Position\n(please be specific)","Federally Funded Instructional Salary","State/Local Funded Instructional Salary"]
[]
[]
[]
[]
[]
[]
[]
[]
[]
[]
[]
[]
[]
[]
[]
[]
[]
[]
[]
[]
[]
[]
[]
[]
[]
[]
[]
[]
[]
[]
[]
[]
[]
[]
[]
[]
[]
["Instructional Personnel- Salary","(REQUIRED to be kept on file for monitoring purposes)"]
[]
["LEA Name:  ",{"$f":"B3","v":0}]
["School Name:",0]
["School Grade Span:",0]
["School Year:",0]
["Instructional personnel includes all licensed classroom teachers and other licensed personnel assigned to the school who provide services that support instruction: principals, assistant principals, instructional coaches, librarians, music, art, and physical education teachers, guidance counselors, speech therapists and licensed social workers and psychological personnel. Other personnel directly supporting instruction assigned to the school may include paraprofessionals and other personnel such as non-licensed social workers.  Personnel not involved in providing instructional support MAY NOT be included.   Other personnel that MAY NOT be included are clerical, custodial, food service, transportation, and any other personnel not providing instructional support. Do not include any PreK personnel or 100% federally funded personnel.  Please remember that federally funded would include Title I, II, III, IV, V, Homeless, CTE, SPED, etc.  If personnel is paid from federal and state/local funds indicate the portion of the salary for each personnel in the appropriate column 3 or column 4."]
[1,null,2,3,4]
["LAST Name of \nEmployee","FIRST Name of Employee","Position\n(please be specific)","Federally Funded Salary","State/Local Funded Salary"]
[]
[]
[]
[]
[]
[]
[]
[]
[]
[]
[]
[]
[]
[]
[]
[]
[]
[]
[]
[]
[]
[]
[]
[]
[]
[]
[]
[]
[]
[]
[]
[]
[]
[]
[]
[]
[null,null,"Totals",null,{"$f":"SUM(E57:E92,E11:E46)","v":0}]

{"sheet":"Instr Salaries School 31","index":32,"n_rows":93,"n_cols":5,"rows_kept":93,"cut":false,"hidden":false,"merged":[[5,1,5,4],[52,1,52,4],[54,0,54,1],[92,2,92,3],[2,1,2,4],[3,1,3,4],[4,1,4,4],[7,0,7,4],[8,0,8,1],[49,1,49,4],[50,1,50,4],[51,1,51,4],[53,0,53,4]]}
["Instructional Personnel- Salary","(REQUIRED to be kept on file for monitoring purposes)"]
[]
["LEA Name:  ",{"$f":"Schools!$E$3","v":0}]
["School Name:",{"$f":"Schools!$A$52","v":0}]
["School Grade Span:",{"$f":"Schools!$B$52","v":0}]
["School Year:",{"$f":"Schools!$E$5","v":0}]
[]
["Instructional personnel includes all licensed classroom teachers and other licensed personnel assigned to the school who provide services that support instruction: principals, assistant principals, instructional coaches, librarians, music, art, and physical education teachers, guidance counselors, speech therapists and licensed social workers and psychological personnel. Other personnel directly supporting instruction assigned to the school may include paraprofessionals and other personnel such as non-licensed social workers.  Personnel not involved in providing instructional support MAY NOT be included.   Other personnel that MAY NOT be included are clerical, custodial, food service, transportation, and any other personnel not providing instructional support. Do not include any PreK personnel or 100% federally funded personnel.  Please remember that federally funded would include Title I, II, III, IV, V, Homeless, CTE, SPED, etc.  If personnel is paid from federal and state/local funds indicate the portion of the salary for each personnel in the appropriate column 3 or column 4."]
[1,null,2,3,4]
["LAST Name of \nEmployee","FIRST Name of Employee","Position\n(please be specific)","Federally Funded Instructional Salary","State/Local Funded Instructional Salary"]
[]
[]
[]
[]
[]
[]
[]
[]
[]
[]
[]
[]
[]
[]
[]
[]
[]
[]
[]
[]
[]
[]
[]
[]
[]
[]
[]
[]
[]
[]
[]
[]
[]
[]
[]
[]
[]
["Instructional Personnel- Salary","(REQUIRED to be kept on file for monitoring purposes)"]
[]
["LEA Name:  ",{"$f":"B3","v":0}]
["School Name:",0]
["School Grade Span:",0]
["School Year:",0]
["Instructional personnel includes all licensed classroom teachers and other licensed personnel assigned to the school who provide services that support instruction: principals, assistant principals, instructional coaches, librarians, music, art, and physical education teachers, guidance counselors, speech therapists and licensed social workers and psychological personnel. Other personnel directly supporting instruction assigned to the school may include paraprofessionals and other personnel such as non-licensed social workers.  Personnel not involved in providing instructional support MAY NOT be included.   Other personnel that MAY NOT be included are clerical, custodial, food service, transportation, and any other personnel not providing instructional support. Do not include any PreK personnel or 100% federally funded personnel.  Please remember that federally funded would include Title I, II, III, IV, V, Homeless, CTE, SPED, etc.  If personnel is paid from federal and state/local funds indicate the portion of the salary for each personnel in the appropriate column 3 or column 4."]
[1,null,2,3,4]
["LAST Name of \nEmployee","FIRST Name of Employee","Position\n(please be specific)","Federally Funded Salary","State/Local Funded Salary"]
[]
[]
[]
[]
[]
[]
[]
[]
[]
[]
[]
[]
[]
[]
[]
[]
[]
[]
[]
[]
[]
[]
[]
[]
[]
[]
[]
[]
[]
[]
[]
[]
[]
[]
[]
[]
[null,null,"Totals",null,{"$f":"SUM(E57:E92,E11:E46)","v":0}]

{"sheet":"Instr Salaries School 32","index":33,"n_rows":93,"n_cols":5,"rows_kept":93,"cut":false,"hidden":false,"merged":[[5,1,5,4],[52,1,52,4],[54,0,54,1],[92,2,92,3],[2,1,2,4],[3,1,3,4],[4,1,4,4],[7,0,7,4],[8,0,8,1],[49,1,49,4],[50,1,50,4],[51,1,51,4],[53,0,53,4]]}
["Instructional Personnel- Salary","(REQUIRED to be kept on file for monitoring purposes)"]
[]
["LEA Name:  ",{"$f":"Schools!$E$3","v":0}]
["School Name:",{"$f":"Schools!$A$53","v":0}]
["School Grade Span:",{"$f":"Schools!$B$53","v":0}]
["School Year:",{"$f":"Schools!$E$5","v":0}]
[]
["Instructional personnel includes all licensed classroom teachers and other licensed personnel assigned to the school who provide services that support instruction: principals, assistant principals, instructional coaches, librarians, music, art, and physical education teachers, guidance counselors, speech therapists and licensed social workers and psychological personnel. Other personnel directly supporting instruction assigned to the school may include paraprofessionals and other personnel such as non-licensed social workers.  Personnel not involved in providing instructional support MAY NOT be included.   Other personnel that MAY NOT be included are clerical, custodial, food service, transportation, and any other personnel not providing instructional support. Do not include any PreK personnel or 100% federally funded personnel.  Please remember that federally funded would include Title I, II, III, IV, V, Homeless, CTE, SPED, etc.  If personnel is paid from federal and state/local funds indicate the portion of the salary for each personnel in the appropriate column 3 or column 4."]
[1,null,2,3,4]
["LAST Name of \nEmployee","FIRST Name of Employee","Position\n(please be specific)","Federally Funded Instructional Salary","State/Local Funded Instructional Salary"]
[]
[]
[]
[]
[]
[]
[]
[]
[]
[]
[]
[]
[]
[]
[]
[]
[]
[]
[]
[]
[]
[]
[]
[]
[]
[]
[]
[]
[]
[]
[]
[]
[]
[]
[]
[]
[]
["Instructional Personnel- Salary","(REQUIRED to be kept on file for monitoring purposes)"]
[]
["LEA Name:  ",{"$f":"B3","v":0}]
["School Name:",0]
["School Grade Span:",0]
["School Year:",0]
["Instructional personnel includes all licensed classroom teachers and other licensed personnel assigned to the school who provide services that support instruction: principals, assistant principals, instructional coaches, librarians, music, art, and physical education teachers, guidance counselors, speech therapists and licensed social workers and psychological personnel. Other personnel directly supporting instruction assigned to the school may include paraprofessionals and other personnel such as non-licensed social workers.  Personnel not involved in providing instructional support MAY NOT be included.   Other personnel that MAY NOT be included are clerical, custodial, food service, transportation, and any other personnel not providing instructional support. Do not include any PreK personnel or 100% federally funded personnel.  Please remember that federally funded would include Title I, II, III, IV, V, Homeless, CTE, SPED, etc.  If personnel is paid from federal and state/local funds indicate the portion of the salary for each personnel in the appropriate column 3 or column 4."]
[1,null,2,3,4]
["LAST Name of \nEmployee","FIRST Name of Employee","Position\n(please be specific)","Federally Funded Salary","State/Local Funded Salary"]
[]
[]
[]
[]
[]
[]
[]
[]
[]
[]
[]
[]
[]
[]
[]
[]
[]
[]
[]
[]
[]
[]
[]
[]
[]
[]
[]
[]
[]
[]
[]
[]
[]
[]
[]
[]
[null,null,"Totals",null,{"$f":"SUM(E57:E92,E11:E46)","v":0}]

{"sheet":"Instr Salaries School 33","index":34,"n_rows":93,"n_cols":5,"rows_kept":93,"cut":false,"hidden":false,"merged":[[5,1,5,4],[52,1,52,4],[54,0,54,1],[92,2,92,3],[2,1,2,4],[3,1,3,4],[4,1,4,4],[7,0,7,4],[8,0,8,1],[49,1,49,4],[50,1,50,4],[51,1,51,4],[53,0,53,4]]}
["Instructional Personnel- Salary","(REQUIRED to be kept on file for monitoring purposes)"]
[]
["LEA Name:  ",{"$f":"Schools!$E$3","v":0}]
["School Name:",{"$f":"Schools!$A$54","v":0}]
["School Grade Span:",{"$f":"Schools!$B$54","v":0}]
["School Year:",{"$f":"Schools!$E$5","v":0}]
[]
["Instructional personnel includes all licensed classroom teachers and other licensed personnel assigned to the school who provide services that support instruction: principals, assistant principals, instructional coaches, librarians, music, art, and physical education teachers, guidance counselors, speech therapists and licensed social workers and psychological personnel. Other personnel directly supporting instruction assigned to the school may include paraprofessionals and other personnel such as non-licensed social workers.  Personnel not involved in providing instructional support MAY NOT be included.   Other personnel that MAY NOT be included are clerical, custodial, food service, transportation, and any other personnel not providing instructional support. Do not include any PreK personnel or 100% federally funded personnel.  Please remember that federally funded would include Title I, II, III, IV, V, Homeless, CTE, SPED, etc.  If personnel is paid from federal and state/local funds indicate the portion of the salary for each personnel in the appropriate column 3 or column 4."]
[1,null,2,3,4]
["LAST Name of \nEmployee","FIRST Name of Employee","Position\n(please be specific)","Federally Funded Instructional Salary","State/Local Funded Instructional Salary"]
[]
[]
[]
[]
[]
[]
[]
[]
[]
[]
[]
[]
[]
[]
[]
[]
[]
[]
[]
[]
[]
[]
[]
[]
[]
[]
[]
[]
[]
[]
[]
[]
[]
[]
[]
[]
[]
["Instructional Personnel- Salary","(REQUIRED to be kept on file for monitoring purposes)"]
[]
["LEA Name:  ",{"$f":"B3","v":0}]
["School Name:",0]
["School Grade Span:",0]
["School Year:",0]
["Instructional personnel includes all licensed classroom teachers and other licensed personnel assigned to the school who provide services that support instruction: principals, assistant principals, instructional coaches, librarians, music, art, and physical education teachers, guidance counselors, speech therapists and licensed social workers and psychological personnel. Other personnel directly supporting instruction assigned to the school may include paraprofessionals and other personnel such as non-licensed social workers.  Personnel not involved in providing instructional support MAY NOT be included.   Other personnel that MAY NOT be included are clerical, custodial, food service, transportation, and any other personnel not providing instructional support. Do not include any PreK personnel or 100% federally funded personnel.  Please remember that federally funded would include Title I, II, III, IV, V, Homeless, CTE, SPED, etc.  If personnel is paid from federal and state/local funds indicate the portion of the salary for each personnel in the appropriate column 3 or column 4."]
[1,null,2,3,4]
["LAST Name of \nEmployee","FIRST Name of Employee","Position\n(please be specific)","Federally Funded Salary","State/Local Funded Salary"]
[]
[]
[]
[]
[]
[]
[]
[]
[]
[]
[]
[]
[]
[]
[]
[]
[]
[]
[]
[]
[]
[]
[]
[]
[]
[]
[]
[]
[]
[]
[]
[]
[]
[]
[]
[]
[null,null,"Totals",null,{"$f":"SUM(E57:E92,E11:E46)","v":0}]

{"sheet":"Instr Salaries School 34","index":35,"n_rows":93,"n_cols":5,"rows_kept":93,"cut":false,"hidden":false,"merged":[[5,1,5,4],[52,1,52,4],[54,0,54,1],[92,2,92,3],[2,1,2,4],[3,1,3,4],[4,1,4,4],[7,0,7,4],[8,0,8,1],[49,1,49,4],[50,1,50,4],[51,1,51,4],[53,0,53,4]]}
["Instructional Personnel- Salary","(REQUIRED to be kept on file for monitoring purposes)"]
[]
["LEA Name:  ",{"$f":"Schools!$E$3","v":0}]
["School Name:",{"$f":"Schools!$A$55","v":0}]
["School Grade Span:",{"$f":"Schools!$B$55","v":0}]
["School Year:",{"$f":"Schools!$E$5","v":0}]
[]
["Instructional personnel includes all licensed classroom teachers and other licensed personnel assigned to the school who provide services that support instruction: principals, assistant principals, instructional coaches, librarians, music, art, and physical education teachers, guidance counselors, speech therapists and licensed social workers and psychological personnel. Other personnel directly supporting instruction assigned to the school may include paraprofessionals and other personnel such as non-licensed social workers.  Personnel not involved in providing instructional support MAY NOT be included.   Other personnel that MAY NOT be included are clerical, custodial, food service, transportation, and any other personnel not providing instructional support. Do not include any PreK personnel or 100% federally funded personnel.  Please remember that federally funded would include Title I, II, III, IV, V, Homeless, CTE, SPED, etc.  If personnel is paid from federal and state/local funds indicate the portion of the salary for each personnel in the appropriate column 3 or column 4."]
[1,null,2,3,4]
["LAST Name of \nEmployee","FIRST Name of Employee","Position\n(please be specific)","Federally Funded Instructional Salary","State/Local Funded Instructional Salary"]
[]
[]
[]
[]
[]
[]
[]
[]
[]
[]
[]
[]
[]
[]
[]
[]
[]
[]
[]
[]
[]
[]
[]
[]
[]
[]
[]
[]
[]
[]
[]
[]
[]
[]
[]
[]
[]
["Instructional Personnel- Salary","(REQUIRED to be kept on file for monitoring purposes)"]
[]
["LEA Name:  ",{"$f":"B3","v":0}]
["School Name:",0]
["School Grade Span:",0]
["School Year:",0]
["Instructional personnel includes all licensed classroom teachers and other licensed personnel assigned to the school who provide services that support instruction: principals, assistant principals, instructional coaches, librarians, music, art, and physical education teachers, guidance counselors, speech therapists and licensed social workers and psychological personnel. Other personnel directly supporting instruction assigned to the school may include paraprofessionals and other personnel such as non-licensed social workers.  Personnel not involved in providing instructional support MAY NOT be included.   Other personnel that MAY NOT be included are clerical, custodial, food service, transportation, and any other personnel not providing instructional support. Do not include any PreK personnel or 100% federally funded personnel.  Please remember that federally funded would include Title I, II, III, IV, V, Homeless, CTE, SPED, etc.  If personnel is paid from federal and state/local funds indicate the portion of the salary for each personnel in the appropriate column 3 or column 4."]
[1,null,2,3,4]
["LAST Name of \nEmployee","FIRST Name of Employee","Position\n(please be specific)","Federally Funded Salary","State/Local Funded Salary"]
[]
[]
[]
[]
[]
[]
[]
[]
[]
[]
[]
[]
[]
[]
[]
[]
[]
[]
[]
[]
[]
[]
[]
[]
[]
[]
[]
[]
[]
[]
[]
[]
[]
[]
[]
[]
[null,null,"Totals",null,{"$f":"SUM(E57:E92,E11:E46)","v":0}]

{"sheet":"Instr Salaries School 35","index":36,"n_rows":93,"n_cols":5,"rows_kept":93,"cut":false,"hidden":false,"merged":[[5,1,5,4],[52,1,52,4],[54,0,54,1],[92,2,92,3],[2,1,2,4],[3,1,3,4],[4,1,4,4],[7,0,7,4],[8,0,8,1],[49,1,49,4],[50,1,50,4],[51,1,51,4],[53,0,53,4]]}
["Instructional Personnel- Salary","(REQUIRED to be kept on file for monitoring purposes)"]
[]
["LEA Name:  ",{"$f":"Schools!$E$36","v":0}]
["School Name:",{"$f":"Schools!$A$56","v":0}]
["School Grade Span:",{"$f":"Schools!$B$56","v":0}]
["School Year:",{"$f":"Schools!$E$5","v":0}]
[]
["Instructional personnel includes all licensed classroom teachers and other licensed personnel assigned to the school who provide services that support instruction: principals, assistant principals, instructional coaches, librarians, music, art, and physical education teachers, guidance counselors, speech therapists and licensed social workers and psychological personnel. Other personnel directly supporting instruction assigned to the school may include paraprofessionals and other personnel such as non-licensed social workers.  Personnel not involved in providing instructional support MAY NOT be included.   Other personnel that MAY NOT be included are clerical, custodial, food service, transportation, and any other personnel not providing instructional support. Do not include any PreK personnel or 100% federally funded personnel.  Please remember that federally funded would include Title I, II, III, IV, V, Homeless, CTE, SPED, etc.  If personnel is paid from federal and state/local funds indicate the portion of the salary for each personnel in the appropriate column 3 or column 4."]
[1,null,2,3,4]
["LAST Name of \nEmployee","FIRST Name of Employee","Position\n(please be specific)","Federally Funded Instructional Salary","State/Local Funded Instructional Salary"]
[]
[]
[]
[]
[]
[]
[]
[]
[]
[]
[]
[]
[]
[]
[]
[]
[]
[]
[]
[]
[]
[]
[]
[]
[]
[]
[]
[]
[]
[]
[]
[]
[]
[]
[]
[]
[]
["Instructional Personnel- Salary","(REQUIRED to be kept on file for monitoring purposes)"]
[]
["LEA Name:  ",{"$f":"Schools!$E$3","v":0}]
["School Name:",{"$f":"Schools!$A$56","v":0}]
["School Grade Span:",{"$f":"Schools!$B$56","v":0}]
["School Year:",{"$f":"Schools!$E$5","v":0}]
["Instructional personnel includes all licensed classroom teachers and other licensed personnel assigned to the school who provide services that support instruction: principals, assistant principals, instructional coaches, librarians, music, art, and physical education teachers, guidance counselors, speech therapists and licensed social workers and psychological personnel. Other personnel directly supporting instruction assigned to the school may include paraprofessionals and other personnel such as non-licensed social workers.  Personnel not involved in providing instructional support MAY NOT be included.   Other personnel that MAY NOT be included are clerical, custodial, food service, transportation, and any other personnel not providing instructional support. Do not include any PreK personnel or 100% federally funded personnel.  Please remember that federally funded would include Title I, II, III, IV, V, Homeless, CTE, SPED, etc.  If personnel is paid from federal and state/local funds indicate the portion of the salary for each personnel in the appropriate column 3 or column 4."]
[1,null,2,3,4]
["LAST Name of \nEmployee","FIRST Name of Employee","Position\n(please be specific)","Federally Funded Salary","State/Local Funded Salary"]
[]
[]
[]
[]
[]
[]
[]
[]
[]
[]
[]
[]
[]
[]
[]
[]
[]
[]
[]
[]
[]
[]
[]
[]
[]
[]
[]
[]
[]
[]
[]
[]
[]
[]
[]
[]
[null,null,"Totals",null,{"$f":"SUM(E57:E92,E11:E46)","v":0}]

{"sheet":"Instr Salaries School 36","index":37,"n_rows":93,"n_cols":5,"rows_kept":93,"cut":false,"hidden":false,"merged":[[5,1,5,4],[52,1,52,4],[54,0,54,1],[92,2,92,3],[2,1,2,4],[3,1,3,4],[4,1,4,4],[7,0,7,4],[8,0,8,1],[49,1,49,4],[50,1,50,4],[51,1,51,4],[53,0,53,4]]}
["Instructional Personnel- Salary","(REQUIRED to be kept on file for monitoring purposes)"]
[]
["LEA Name:  ",{"$f":"Schools!$E$3","v":0}]
["School Name:",{"$f":"Schools!$A$57","v":0}]
["School Grade Span:",{"$f":"Schools!$B$57","v":0}]
["School Year:",{"$f":"Schools!$E$5","v":0}]
[]
["Instructional personnel includes all licensed classroom teachers and other licensed personnel assigned to the school who provide services that support instruction: principals, assistant principals, instructional coaches, librarians, music, art, and physical education teachers, guidance counselors, speech therapists and licensed social workers and psychological personnel. Other personnel directly supporting instruction assigned to the school may include paraprofessionals and other personnel such as non-licensed social workers.  Personnel not involved in providing instructional support MAY NOT be included.   Other personnel that MAY NOT be included are clerical, custodial, food service, transportation, and any other personnel not providing instructional support. Do not include any PreK personnel or 100% federally funded personnel.  Please remember that federally funded would include Title I, II, III, IV, V, Homeless, CTE, SPED, etc.  If personnel is paid from federal and state/local funds indicate the portion of the salary for each personnel in the appropriate column 3 or column 4."]
[1,null,2,3,4]
["LAST Name of \nEmployee","FIRST Name of Employee","Position\n(please be specific)","Federally Funded Instructional Salary","State/Local Funded Instructional Salary"]
[]
[]
[]
[]
[]
[]
[]
[]
[]
[]
[]
[]
[]
[]
[]
[]
[]
[]
[]
[]
[]
[]
[]
[]
[]
[]
[]
[]
[]
[]
[]
[]
[]
[]
[]
[]
[]
["Instructional Personnel- Salary","(REQUIRED to be kept on file for monitoring purposes)"]
[]
["LEA Name:  ",{"$f":"B3","v":0}]
["School Name:",0]
["School Grade Span:",0]
["School Year:",0]
["Instructional personnel includes all licensed classroom teachers and other licensed personnel assigned to the school who provide services that support instruction: principals, assistant principals, instructional coaches, librarians, music, art, and physical education teachers, guidance counselors, speech therapists and licensed social workers and psychological personnel. Other personnel directly supporting instruction assigned to the school may include paraprofessionals and other personnel such as non-licensed social workers.  Personnel not involved in providing instructional support MAY NOT be included.   Other personnel that MAY NOT be included are clerical, custodial, food service, transportation, and any other personnel not providing instructional support. Do not include any PreK personnel or 100% federally funded personnel.  Please remember that federally funded would include Title I, II, III, IV, V, Homeless, CTE, SPED, etc.  If personnel is paid from federal and state/local funds indicate the portion of the salary for each personnel in the appropriate column 3 or column 4."]
[1,null,2,3,4]
["LAST Name of \nEmployee","FIRST Name of Employee","Position\n(please be specific)","Federally Funded Salary","State/Local Funded Salary"]
[]
[]
[]
[]
[]
[]
[]
[]
[]
[]
[]
[]
[]
[]
[]
[]
[]
[]
[]
[]
[]
[]
[]
[]
[]
[]
[]
[]
[]
[]
[]
[]
[]
[]
[]
[]
[null,null,"Totals",null,{"$f":"SUM(E57:E92,E11:E46)","v":0}]

{"sheet":"Instr Salaries School 37","index":38,"n_rows":93,"n_cols":5,"rows_kept":93,"cut":false,"hidden":false,"merged":[[5,1,5,4],[52,1,52,4],[54,0,54,1],[92,2,92,3],[2,1,2,4],[3,1,3,4],[4,1,4,4],[7,0,7,4],[8,0,8,1],[49,1,49,4],[50,1,50,4],[51,1,51,4],[53,0,53,4]]}
["Instructional Personnel- Salary","(REQUIRED to be kept on file for monitoring purposes)"]
[]
["LEA Name:  ",{"$f":"Schools!$E$3","v":0}]
["School Name:",{"$f":"Schools!$A$58","v":0}]
["School Grade Span:",{"$f":"Schools!$B$58","v":0}]
["School Year:",{"$f":"Schools!$E$5","v":0}]
[]
["Instructional personnel includes all licensed classroom teachers and other licensed personnel assigned to the school who provide services that support instruction: principals, assistant principals, instructional coaches, librarians, music, art, and physical education teachers, guidance counselors, speech therapists and licensed social workers and psychological personnel. Other personnel directly supporting instruction assigned to the school may include paraprofessionals and other personnel such as non-licensed social workers.  Personnel not involved in providing instructional support MAY NOT be included.   Other personnel that MAY NOT be included are clerical, custodial, food service, transportation, and any other personnel not providing instructional support. Do not include any PreK personnel or 100% federally funded personnel.  Please remember that federally funded would include Title I, II, III, IV, V, Homeless, CTE, SPED, etc.  If personnel is paid from federal and state/local funds indicate the portion of the salary for each personnel in the appropriate column 3 or column 4."]
[1,null,2,3,4]
["LAST Name of \nEmployee","FIRST Name of Employee","Position\n(please be specific)","Federally Funded Instructional Salary","State/Local Funded Instructional Salary"]
[]
[]
[]
[]
[]
[]
[]
[]
[]
[]
[]
[]
[]
[]
[]
[]
[]
[]
[]
[]
[]
[]
[]
[]
[]
[]
[]
[]
[]
[]
[]
[]
[]
[]
[]
[]
[]
["Instructional Personnel- Salary","(REQUIRED to be kept on file for monitoring purposes)"]
[]
["LEA Name:  ",{"$f":"B3","v":0}]
["School Name:",0]
["School Grade Span:",0]
["School Year:",0]
["Instructional personnel includes all licensed classroom teachers and other licensed personnel assigned to the school who provide services that support instruction: principals, assistant principals, instructional coaches, librarians, music, art, and physical education teachers, guidance counselors, speech therapists and licensed social workers and psychological personnel. Other personnel directly supporting instruction assigned to the school may include paraprofessionals and other personnel such as non-licensed social workers.  Personnel not involved in providing instructional support MAY NOT be included.   Other personnel that MAY NOT be included are clerical, custodial, food service, transportation, and any other personnel not providing instructional support. Do not include any PreK personnel or 100% federally funded personnel.  Please remember that federally funded would include Title I, II, III, IV, V, Homeless, CTE, SPED, etc.  If personnel is paid from federal and state/local funds indicate the portion of the salary for each personnel in the appropriate column 3 or column 4."]
[1,null,2,3,4]
["LAST Name of \nEmployee","FIRST Name of Employee","Position\n(please be specific)","Federally Funded Salary","State/Local Funded Salary"]
[]
[]
[]
[]
[]
[]
[]
[]
[]
[]
[]
[]
[]
[]
[]
[]
[]
[]
[]
[]
[]
[]
[]
[]
[]
[]
[]
[]
[]
[]
[]
[]
[]
[]
[]
[]
[null,null,"Totals",null,{"$f":"SUM(E57:E92,E11:E46)","v":0}]

{"sheet":"Instr Salaries School 38","index":39,"n_rows":93,"n_cols":5,"rows_kept":93,"cut":false,"hidden":false,"merged":[[5,1,5,4],[52,1,52,4],[54,0,54,1],[92,2,92,3],[2,1,2,4],[3,1,3,4],[4,1,4,4],[7,0,7,4],[8,0,8,1],[49,1,49,4],[50,1,50,4],[51,1,51,4],[53,0,53,4]]}
["Instructional Personnel- Salary","(REQUIRED to be kept on file for monitoring purposes)"]
[]
["LEA Name:  ",{"$f":"Schools!$E$3","v":0}]
["School Name:",{"$f":"Schools!$A$59","v":0}]
["School Grade Span:",{"$f":"Schools!$B$59","v":0}]
["School Year:",{"$f":"Schools!$E$5","v":0}]
[]
["Instructional personnel includes all licensed classroom teachers and other licensed personnel assigned to the school who provide services that support instruction: principals, assistant principals, instructional coaches, librarians, music, art, and physical education teachers, guidance counselors, speech therapists and licensed social workers and psychological personnel. Other personnel directly supporting instruction assigned to the school may include paraprofessionals and other personnel such as non-licensed social workers.  Personnel not involved in providing instructional support MAY NOT be included.   Other personnel that MAY NOT be included are clerical, custodial, food service, transportation, and any other personnel not providing instructional support. Do not include any PreK personnel or 100% federally funded personnel.  Please remember that federally funded would include Title I, II, III, IV, V, Homeless, CTE, SPED, etc.  If personnel is paid from federal and state/local funds indicate the portion of the salary for each personnel in the appropriate column 3 or column 4."]
[1,null,2,3,4]
["LAST Name of \nEmployee","FIRST Name of Employee","Position\n(please be specific)","Federally Funded Instructional Salary","State/Local Funded Instructional Salary"]
[]
[]
[]
[]
[]
[]
[]
[]
[]
[]
[]
[]
[]
[]
[]
[]
[]
[]
[]
[]
[]
[]
[]
[]
[]
[]
[]
[]
[]
[]
[]
[]
[]
[]
[]
[]
[]
["Instructional Personnel- Salary","(REQUIRED to be kept on file for monitoring purposes)"]
[]
["LEA Name:  ",{"$f":"B3","v":0}]
["School Name:",0]
["School Grade Span:",0]
["School Year:",0]
["Instructional personnel includes all licensed classroom teachers and other licensed personnel assigned to the school who provide services that support instruction: principals, assistant principals, instructional coaches, librarians, music, art, and physical education teachers, guidance counselors, speech therapists and licensed social workers and psychological personnel. Other personnel directly supporting instruction assigned to the school may include paraprofessionals and other personnel such as non-licensed social workers.  Personnel not involved in providing instructional support MAY NOT be included.   Other personnel that MAY NOT be included are clerical, custodial, food service, transportation, and any other personnel not providing instructional support. Do not include any PreK personnel or 100% federally funded personnel.  Please remember that federally funded would include Title I, II, III, IV, V, Homeless, CTE, SPED, etc.  If personnel is paid from federal and state/local funds indicate the portion of the salary for each personnel in the appropriate column 3 or column 4."]
[1,null,2,3,4]
["LAST Name of \nEmployee","FIRST Name of Employee","Position\n(please be specific)","Federally Funded Salary","State/Local Funded Salary"]
[]
[]
[]
[]
[]
[]
[]
[]
[]
[]
[]
[]
[]
[]
[]
[]
[]
[]
[]
[]
[]
[]
[]
[]
[]
[]
[]
[]
[]
[]
[]
[]
[]
[]
[]
[]
[null,null,"Totals",null,{"$f":"SUM(E57:E92,E11:E46)","v":0}]

{"sheet":"Instr Salaries School 39","index":40,"n_rows":93,"n_cols":5,"rows_kept":93,"cut":false,"hidden":false,"merged":[[5,1,5,4],[52,1,52,4],[54,0,54,1],[92,2,92,3],[2,1,2,4],[3,1,3,4],[4,1,4,4],[7,0,7,4],[8,0,8,1],[49,1,49,4],[50,1,50,4],[51,1,51,4],[53,0,53,4]]}
["Instructional Personnel- Salary","(REQUIRED to be kept on file for monitoring purposes)"]
[]
["LEA Name:  ",{"$f":"Schools!$E$3","v":0}]
["School Name:",{"$f":"Schools!$A$60","v":0}]
["School Grade Span:",{"$f":"Schools!$B$60","v":0}]
["School Year:",{"$f":"Schools!$E$5","v":0}]
[]
["Instructional personnel includes all licensed classroom teachers and other licensed personnel assigned to the school who provide services that support instruction: principals, assistant principals, instructional coaches, librarians, music, art, and physical education teachers, guidance counselors, speech therapists and licensed social workers and psychological personnel. Other personnel directly supporting instruction assigned to the school may include paraprofessionals and other personnel such as non-licensed social workers.  Personnel not involved in providing instructional support MAY NOT be included.   Other personnel that MAY NOT be included are clerical, custodial, food service, transportation, and any other personnel not providing instructional support. Do not include any PreK personnel or 100% federally funded personnel.  Please remember that federally funded would include Title I, II, III, IV, V, Homeless, CTE, SPED, etc.  If personnel is paid from federal and state/local funds indicate the portion of the salary for each personnel in the appropriate column 3 or column 4."]
[1,null,2,3,4]
["LAST Name of \nEmployee","FIRST Name of Employee","Position\n(please be specific)","Federally Funded Instructional Salary","State/Local Funded Instructional Salary"]
[]
[]
[]
[]
[]
[]
[]
[]
[]
[]
[]
[]
[]
[]
[]
[]
[]
[]
[]
[]
[]
[]
[]
[]
[]
[]
[]
[]
[]
[]
[]
[]
[]
[]
[]
[]
[]
["Instructional Personnel- Salary","(REQUIRED to be kept on file for monitoring purposes)"]
[]
["LEA Name:  ",{"$f":"B3","v":0}]
["School Name:",0]
["School Grade Span:",0]
["School Year:",0]
["Instructional personnel includes all licensed classroom teachers and other licensed personnel assigned to the school who provide services that support instruction: principals, assistant principals, instructional coaches, librarians, music, art, and physical education teachers, guidance counselors, speech therapists and licensed social workers and psychological personnel. Other personnel directly supporting instruction assigned to the school may include paraprofessionals and other personnel such as non-licensed social workers.  Personnel not involved in providing instructional support MAY NOT be included.   Other personnel that MAY NOT be included are clerical, custodial, food service, transportation, and any other personnel not providing instructional support. Do not include any PreK personnel or 100% federally funded personnel.  Please remember that federally funded would include Title I, II, III, IV, V, Homeless, CTE, SPED, etc.  If personnel is paid from federal and state/local funds indicate the portion of the salary for each personnel in the appropriate column 3 or column 4."]
[1,null,2,3,4]
["LAST Name of \nEmployee","FIRST Name of Employee","Position\n(please be specific)","Federally Funded Salary","State/Local Funded Salary"]
[]
[]
[]
[]
[]
[]
[]
[]
[]
[]
[]
[]
[]
[]
[]
[]
[]
[]
[]
[]
[]
[]
[]
[]
[]
[]
[]
[]
[]
[]
[]
[]
[]
[]
[]
[]
[null,null,"Totals",null,{"$f":"SUM(E57:E92,E11:E46)","v":0}]

{"sheet":"Instr Salaries School 40","index":41,"n_rows":93,"n_cols":5,"rows_kept":93,"cut":false,"hidden":false,"merged":[[5,1,5,4],[52,1,52,4],[54,0,54,1],[92,2,92,3],[2,1,2,4],[3,1,3,4],[4,1,4,4],[7,0,7,4],[8,0,8,1],[49,1,49,4],[50,1,50,4],[51,1,51,4],[53,0,53,4]]}
["Instructional Personnel- Salary","(REQUIRED to be kept on file for monitoring purposes)"]
[]
["LEA Name:  ",{"$f":"Schools!$E$3","v":0}]
["School Name:",{"$f":"Schools!$A$61","v":0}]
["School Grade Span:",{"$f":"Schools!$B$61","v":0}]
["School Year:",{"$f":"Schools!$E$5","v":0}]
[]
["Instructional personnel includes all licensed classroom teachers and other licensed personnel assigned to the school who provide services that support instruction: principals, assistant principals, instructional coaches, librarians, music, art, and physical education teachers, guidance counselors, speech therapists and licensed social workers and psychological personnel. Other personnel directly supporting instruction assigned to the school may include paraprofessionals and other personnel such as non-licensed social workers.  Personnel not involved in providing instructional support MAY NOT be included.   Other personnel that MAY NOT be included are clerical, custodial, food service, transportation, and any other personnel not providing instructional support. Do not include any PreK personnel or 100% federally funded personnel.  Please remember that federally funded would include Title I, II, III, IV, V, Homeless, CTE, SPED, etc.  If personnel is paid from federal and state/local funds indicate the portion of the salary for each personnel in the appropriate column 3 or column 4."]
[1,null,2,3,4]
["LAST Name of \nEmployee","FIRST Name of Employee","Position\n(please be specific)","Federally Funded Instructional Salary","State/Local Funded Instructional Salary"]
[]
[]
[]
[]
[]
[]
[]
[]
[]
[]
[]
[]
[]
[]
[]
[]
[]
[]
[]
[]
[]
[]
[]
[]
[]
[]
[]
[]
[]
[]
[]
[]
[]
[]
[]
[]
[]
["Instructional Personnel- Salary","(REQUIRED to be kept on file for monitoring purposes)"]
[]
["LEA Name:  ",{"$f":"B3","v":0}]
["School Name:",0]
["School Grade Span:",0]
["School Year:",0]
["Instructional personnel includes all licensed classroom teachers and other licensed personnel assigned to the school who provide services that support instruction: principals, assistant principals, instructional coaches, librarians, music, art, and physical education teachers, guidance counselors, speech therapists and licensed social workers and psychological personnel. Other personnel directly supporting instruction assigned to the school may include paraprofessionals and other personnel such as non-licensed social workers.  Personnel not involved in providing instructional support MAY NOT be included.   Other personnel that MAY NOT be included are clerical, custodial, food service, transportation, and any other personnel not providing instructional support. Do not include any PreK personnel or 100% federally funded personnel.  Please remember that federally funded would include Title I, II, III, IV, V, Homeless, CTE, SPED, etc.  If personnel is paid from federal and state/local funds indicate the portion of the salary for each personnel in the appropriate column 3 or column 4."]
[1,null,2,3,4]
["LAST Name of \nEmployee","FIRST Name of Employee","Position\n(please be specific)","Federally Funded Salary","State/Local Funded Salary"]
[null,null,null,null,40]
[]
[]
[]
[]
[]
[]
[]
[]
[]
[]
[]
[]
[]
[]
[]
[]
[]
[]
[]
[]
[]
[]
[]
[]
[]
[]
[]
[]
[]
[]
[]
[]
[]
[]
[]
[null,null,"Totals",null,{"$f":"SUM(E57:E92,E11:E46)","v":40}]

{"sheet":"Instr Salaries School 41","index":42,"n_rows":93,"n_cols":5,"rows_kept":93,"cut":false,"hidden":false,"merged":[[5,1,5,4],[52,1,52,4],[54,0,54,1],[92,2,92,3],[2,1,2,4],[3,1,3,4],[4,1,4,4],[7,0,7,4],[8,0,8,1],[49,1,49,4],[50,1,50,4],[51,1,51,4],[53,0,53,4]]}
["Instructional Personnel- Salary","(REQUIRED to be kept on file for monitoring purposes)"]
[]
["LEA Name:  ",{"$f":"Schools!$E$3","v":0}]
["School Name:",{"$f":"Schools!$A$62","v":0}]
["School Grade Span:",{"$f":"Schools!$B$62","v":0}]
["School Year:",{"$f":"Schools!$E$5","v":0}]
[]
["Instructional personnel includes all licensed classroom teachers and other licensed personnel assigned to the school who provide services that support instruction: principals, assistant principals, instructional coaches, librarians, music, art, and physical education teachers, guidance counselors, speech therapists and licensed social workers and psychological personnel. Other personnel directly supporting instruction assigned to the school may include paraprofessionals and other personnel such as non-licensed social workers.  Personnel not involved in providing instructional support MAY NOT be included.   Other personnel that MAY NOT be included are clerical, custodial, food service, transportation, and any other personnel not providing instructional support. Do not include any PreK personnel or 100% federally funded personnel.  Please remember that federally funded would include Title I, II, III, IV, V, Homeless, CTE, SPED, etc.  If personnel is paid from federal and state/local funds indicate the portion of the salary for each personnel in the appropriate column 3 or column 4."]
[1,null,2,3,4]
["LAST Name of \nEmployee","FIRST Name of Employee","Position\n(please be specific)","Federally Funded Instructional Salary","State/Local Funded Instructional Salary"]
[]
[]
[]
[]
[]
[]
[]
[]
[]
[]
[]
[]
[]
[]
[]
[]
[]
[]
[]
[]
[]
[]
[]
[]
[]
[]
[]
[]
[]
[]
[]
[]
[]
[]
[]
[]
[]
["Instructional Personnel- Salary","(REQUIRED to be kept on file for monitoring purposes)"]
[]
["LEA Name:  ",{"$f":"B3","v":0}]
["School Name:",0]
["School Grade Span:",0]
["School Year:",0]
["Instructional personnel includes all licensed classroom teachers and other licensed personnel assigned to the school who provide services that support instruction: principals, assistant principals, instructional coaches, librarians, music, art, and physical education teachers, guidance counselors, speech therapists and licensed social workers and psychological personnel. Other personnel directly supporting instruction assigned to the school may include paraprofessionals and other personnel such as non-licensed social workers.  Personnel not involved in providing instructional support MAY NOT be included.   Other personnel that MAY NOT be included are clerical, custodial, food service, transportation, and any other personnel not providing instructional support. Do not include any PreK personnel or 100% federally funded personnel.  Please remember that federally funded would include Title I, II, III, IV, V, Homeless, CTE, SPED, etc.  If personnel is paid from federal and state/local funds indicate the portion of the salary for each personnel in the appropriate column 3 or column 4."]
[1,null,2,3,4]
["LAST Name of \nEmployee","FIRST Name of Employee","Position\n(please be specific)","Federally Funded Salary","State/Local Funded Salary"]
[]
[]
[]
[]
[]
[]
[]
[]
[]
[]
[]
[]
[]
[]
[]
[]
[]
[]
[]
[]
[]
[]
[]
[]
[]
[]
[]
[]
[]
[]
[]
[]
[]
[]
[]
[]
[null,null,"Totals",null,{"$f":"SUM(E57:E92,E11:E46)","v":0}]

{"sheet":"Instr Salaries School 42","index":43,"n_rows":93,"n_cols":5,"rows_kept":93,"cut":false,"hidden":false,"merged":[[5,1,5,4],[52,1,52,4],[54,0,54,1],[92,2,92,3],[2,1,2,4],[3,1,3,4],[4,1,4,4],[7,0,7,4],[8,0,8,1],[49,1,49,4],[50,1,50,4],[51,1,51,4],[53,0,53,4]]}
["Instructional Personnel- Salary","(REQUIRED to be kept on file for monitoring purposes)"]
[]
["LEA Name:  ",{"$f":"Schools!$E$3","v":0}]
["School Name:",{"$f":"Schools!$A$63","v":0}]
["School Grade Span:",{"$f":"Schools!$B$63","v":0}]
["School Year:",{"$f":"Schools!$E$5","v":0}]
[]
["Instructional personnel includes all licensed classroom teachers and other licensed personnel assigned to the school who provide services that support instruction: principals, assistant principals, instructional coaches, librarians, music, art, and physical education teachers, guidance counselors, speech therapists and licensed social workers and psychological personnel. Other personnel directly supporting instruction assigned to the school may include paraprofessionals and other personnel such as non-licensed social workers.  Personnel not involved in providing instructional support MAY NOT be included.   Other personnel that MAY NOT be included are clerical, custodial, food service, transportation, and any other personnel not providing instructional support. Do not include any PreK personnel or 100% federally funded personnel.  Please remember that federally funded would include Title I, II, III, IV, V, Homeless, CTE, SPED, etc.  If personnel is paid from federal and state/local funds indicate the portion of the salary for each personnel in the appropriate column 3 or column 4."]
[1,null,2,3,4]
["LAST Name of \nEmployee","FIRST Name of Employee","Position\n(please be specific)","Federally Funded Instructional Salary","State/Local Funded Instructional Salary"]
[]
[]
[]
[]
[]
[]
[]
[]
[]
[]
[]
[]
[]
[]
[]
[]
[]
[]
[]
[]
[]
[]
[]
[]
[]
[]
[]
[]
[]
[]
[]
[]
[]
[]
[]
[]
[]
["Instructional Personnel- Salary","(REQUIRED to be kept on file for monitoring purposes)"]
[]
["LEA Name:  ",{"$f":"B3","v":0}]
["School Name:",0]
["School Grade Span:",0]
["School Year:",0]
["Instructional personnel includes all licensed classroom teachers and other licensed personnel assigned to the school who provide services that support instruction: principals, assistant principals, instructional coaches, librarians, music, art, and physical education teachers, guidance counselors, speech therapists and licensed social workers and psychological personnel. Other personnel directly supporting instruction assigned to the school may include paraprofessionals and other personnel such as non-licensed social workers.  Personnel not involved in providing instructional support MAY NOT be included.   Other personnel that MAY NOT be included are clerical, custodial, food service, transportation, and any other personnel not providing instructional support. Do not include any PreK personnel or 100% federally funded personnel.  Please remember that federally funded would include Title I, II, III, IV, V, Homeless, CTE, SPED, etc.  If personnel is paid from federal and state/local funds indicate the portion of the salary for each personnel in the appropriate column 3 or column 4."]
[1,null,2,3,4]
["LAST Name of \nEmployee","FIRST Name of Employee","Position\n(please be specific)","Federally Funded Salary","State/Local Funded Salary"]
[]
[]
[]
[]
[]
[]
[]
[]
[]
[]
[]
[]
[]
[]
[]
[]
[]
[]
[]
[]
[]
[]
[]
[]
[]
[]
[]
[]
[]
[]
[]
[]
[]
[]
[]
[]
[null,null,"Totals",null,{"$f":"SUM(E57:E92,E11:E46)","v":0}]